Workbook

Sheet Seguimiento de las puntuaciones
B1: Escriba aquí sus puntuaciones
C3: Asignatura | D3: Tipo | E3: Descripción | F3: Puntuación
C4: Francés moderno | D4: Deberes | E4: Historia de la Segunda Guerra Mundial | F4: 80%
C5: Programación avanzada en Java | D5: Examen parcial | F5: 75%
C6: Español | D6: Deberes | F6: 50%
C7: Física teórica | D7: Deberes | F7: 95%
C8: Francés moderno | D8: Deberes | E8: Historia de la Primera Guerra Mundial | F8: 90%
C9: Francés moderno | D9: Deberes | E9: Páginas 30 - 41 | F9: 80%
C10: Redacción | D10: Redacción | E10: Texto argumentativo | F10: 95%
C11: Matemáticas 1 | D11: Deberes | E11: Páginas 21 y 26 | F11: 80%
C12: Matemáticas 2 | D12: Deberes | E12: Páginas 15 y 18 | F12: 85%
C13: Matemáticas 1 | D13: Deberes | E13: Páginas 34 - 36 | F13: 80%
C14: Matemáticas 2 | D14: Concurso | F14: 95%

Sheet Su resultado
B1: Su resultado
C3: Totales
C4: ="Horas: "&SUM(tblAsignaturas[Créditos académicos]) -> Horas: 24 | D4: =AVERAGE(D7:D31) -> 81% | E4: =AVERAGE(E7:E31) -> 2.71 | F4: =SUM(F7:F31) -> 2.63 | G4: =IFERROR(HLOOKUP(D4,lstAsignaciónPuntuaciones,2),"") -> Notable -
C6: Asignaturas | D6: % | E6: Nota media | F6: Nota media (p) | G6: Calificación | H6: Resultado global
C7: =Cálculos!C6 -> Francés moderno | D7: =Cálculos!AL6 -> 83% | E7: =Cálculos!AM6 -> 3.00 | F7: =IFERROR(E7*Configuración!D9/SUM(tblAsignaturas[Créditos académicos]),"") -> 0.38 | G7: =Cálculos!AN6 -> Notable
C8: =Cálculos!C7 -> Física teórica | D8: =Cálculos!AL7 -> 95% | E8: =Cálculos!AM7 -> 4.00 | F8: =IFERROR(E8*Configuración!D10/SUM(tblAsignaturas[Créditos académicos]),"") -> 0.50 | G8: =Cálculos!AN7 -> Sobresaliente
C9: =Cálculos!C8 -> Matemáticas 1 | D9: =Cálculos!AL8 -> 80% | E9: =Cálculos!AM8 -> 2.67 | F9: =IFERROR(E9*Configuración!D11/SUM(tblAsignaturas[Créditos académicos]),"") -> 0.45 | G9: =Cálculos!AN8 -> Notable -
C10: =Cálculos!C9 -> Matemáticas 2 | D10: =Cálculos!AL9 -> 89% | E10: =Cálculos!AM9 -> 3.33 | F10: =IFERROR(E10*Configuración!D12/SUM(tblAsignaturas[Créditos académicos]),"") -> 0.56 | G10: =Cálculos!AN9 -> Notable +
C11: =Cálculos!C10 -> Programación avanzada en Java | D11: =Cálculos!AL10 -> 75% | E11: =Cálculos!AM10 -> 2.00 | F11: =IFERROR(E11*Configuración!D13/SUM(tblAsignaturas[Créditos académicos]),"") -> 0.42 | G11: =Cálculos!AN10 -> Aprobado
C12: =Cálculos!C11 -> Español | D12: =Cálculos!AL11 -> 50% | E12: =Cálculos!AM11 -> 0.00 | F12: =IFERROR(E12*Configuración!D14/SUM(tblAsignaturas[Créditos académicos]),"") -> 0.00 | G12: =Cálculos!AN11 -> Suspenso
C13: =Cálculos!C12 -> Redacción | D13: =Cálculos!AL12 -> 95% | E13: =Cálculos!AM12 -> 4.00 | F13: =IFERROR(E13*Configuración!D15/SUM(tblAsignaturas[Créditos académicos]),"") -> 0.33 | G13: =Cálculos!AN12 -> Sobresaliente
C14: =Cálculos!C13 ->  | D14: =Cálculos!AL13 ->  | E14: =Cálculos!AM13 ->  | F14: =IFERROR(E14*Configuración!D16/SUM(tblAsignaturas[Créditos académicos]),"") ->  | G14: =Cálculos!AN13 -> 
C15: =Cálculos!C14 ->  | D15: =Cálculos!AL14 ->  | E15: =Cálculos!AM14 ->  | F15: =IFERROR(E15*Configuración!D17/SUM(tblAsignaturas[Créditos académicos]),"") ->  | G15: =Cálculos!AN14 -> 
C16: =Cálculos!C15 ->  | D16: =Cálculos!AL15 ->  | E16: =Cálculos!AM15 ->  | F16: =IFERROR(E16*Configuración!D18/SUM(tblAsignaturas[Créditos académicos]),"") ->  | G16: =Cálculos!AN15 -> 
C17: =Cálculos!C16 ->  | D17: =Cálculos!AL16 ->  | E17: =Cálculos!AM16 ->  | F17: =IFERROR(E17*Configuración!D19/SUM(tblAsignaturas[Créditos académicos]),"") ->  | G17: =Cálculos!AN16 -> 
C18: =Cálculos!C17 ->  | D18: =Cálculos!AL17 ->  | E18: =Cálculos!AM17 ->  | F18: =IFERROR(E18*Configuración!D20/SUM(tblAsignaturas[Créditos académicos]),"") ->  | G18: =Cálculos!AN17 -> 
C19: =Cálculos!C18 ->  | D19: =Cálculos!AL18 ->  | E19: =Cálculos!AM18 ->  | F19: =IFERROR(E19*Configuración!D21/SUM(tblAsignaturas[Créditos académicos]),"") ->  | G19: =Cálculos!AN18 -> 
C20: =Cálculos!C19 ->  | D20: =Cálculos!AL19 ->  | E20: =Cálculos!AM19 ->  | F20: =IFERROR(E20*Configuración!D22/SUM(tblAsignaturas[Créditos académicos]),"") ->  | G20: =Cálculos!AN19 -> 
C21: =Cálculos!C20 ->  | D21: =Cálculos!AL20 ->  | E21: =Cálculos!AM20 ->  | F21: =IFERROR(E21*Configuración!D23/SUM(tblAsignaturas[Créditos académicos]),"") ->  | G21: =Cálculos!AN20 -> 
C22: =Cálculos!C21 ->  | D22: =Cálculos!AL21 ->  | E22: =Cálculos!AM21 ->  | F22: =IFERROR(E22*Configuración!D24/SUM(tblAsignaturas[Créditos académicos]),"") ->  | G22: =Cálculos!AN21 -> 
C23: =Cálculos!C22 ->  | D23: =Cálculos!AL22 ->  | E23: =Cálculos!AM22 ->  | F23: =IFERROR(E23*Configuración!D25/SUM(tblAsignaturas[Créditos académicos]),"") ->  | G23: =Cálculos!AN22 -> 
C24: =Cálculos!C23 ->  | D24: =Cálculos!AL23 ->  | E24: =Cálculos!AM23 ->  | F24: =IFERROR(E24*Configuración!D26/SUM(tblAsignaturas[Créditos académicos]),"") ->  | G24: =Cálculos!AN23 -> 
C25: =Cálculos!C24 ->  | D25: =Cálculos!AL24 ->  | E25: =Cálculos!AM24 ->  | F25: =IFERROR(E25*Configuración!D27/SUM(tblAsignaturas[Créditos académicos]),"") ->  | G25: =Cálculos!AN24 -> 
C26: =Cálculos!C25 ->  | D26: =Cálculos!AL25 ->  | E26: =Cálculos!AM25 ->  | F26: =IFERROR(E26*Configuración!D28/SUM(tblAsignaturas[Créditos académicos]),"") ->  | G26: =Cálculos!AN25 -> 
C27: =Cálculos!C26 ->  | D27: =Cálculos!AL26 ->  | E27: =Cálculos!AM26 ->  | F27: =IFERROR(E27*Configuración!D29/SUM(tblAsignaturas[Créditos académicos]),"") ->  | G27: =Cálculos!AN26 -> 
C28: =Cálculos!C27 ->  | D28: =Cálculos!AL27 ->  | E28: =Cálculos!AM27 ->  | F28: =IFERROR(E28*Configuración!D30/SUM(tblAsignaturas[Créditos académicos]),"") ->  | G28: =Cálculos!AN27 -> 
C29: =Cálculos!C28 ->  | D29: =Cálculos!AL28 ->  | E29: =Cálculos!AM28 ->  | F29: =IFERROR(E29*Configuración!D31/SUM(tblAsignaturas[Créditos académicos]),"") ->  | G29: =Cálculos!AN28 -> 
C30: =Cálculos!C29 ->  | D30: =Cálculos!AL29 ->  | E30: =Cálculos!AM29 ->  | F30: =IFERROR(E30*Configuración!D32/SUM(tblAsignaturas[Créditos académicos]),"") ->  | G30: =Cálculos!AN29 -> 
C31: =Cálculos!C30 ->  | D31: =Cálculos!AL30 ->  | E31: =Cálculos!AM30 ->  | F31: =IFERROR(E31*Configuración!D33/SUM(tblAsignaturas[Créditos académicos]),"") ->  | G31: =Cálculos!AN30 -> 

Sheet Configuración
B1: Configuración
C2: Asignación de puntuaciones y notas medias
C3: Porcentaje | D3: 0% | E3: 60% | F3: 63% | G3: 67% | H3: 70% | I3: 73% | J3: 77% | K3: 80% | L3: 83% | M3: 87% | N3: 90% | O3: 93% | P3: 97%
C4: Calificación | D4: Suspenso | E4: Aprobado - | F4: Aprobado | G4: Aprobado + | H4: Aprobado - | I4: Aprobado | J4: Aprobado + | K4: Notable - | L4: Notable | M4: Notable + | N4: Sobresaliente - | O4: Sobresaliente | P4: Matrícula de Honor
C5: Nota media | D5: 0 | E5: 0.67 | F5: 1 | G5: 1.33 | H5: 1.67 | I5: 2 | J5: 2.33 | K5: 2.67 | L5: 3 | M5: 3.33 | N5: 3.67 | O5: 4 | P5: 4
C7: Puntuaciones ponderadas relativas a un máximo de 25 asignaturas
C8: Asignaturas que está cursando | D8: Créditos académicos | E8: Deberes | F8: Redacción | G8: Concurso | H8: Proyecto | I8: Examen parcial | J8: Examen final | K8: Otros | L8: % total
C9: Francés moderno | D9: 3.0 | E9: 10% | F9: 15% | G9: 15% | H9: 10% | I9: 20% | J9: 30% | L9: =SUM(tblAsignaturas[[#This Row],[Deberes]:[Otros]]) -> 100%
C10: Física teórica | D10: 3.0 | E10: 15% | F10: 15% | G10: 10% | H10: 10% | I10: 15% | J10: 30% | K10: 5% | L10: =SUM(tblAsignaturas[[#This Row],[Deberes]:[Otros]]) -> 100%
C11: Matemáticas 1 | D11: 4.0 | E11: 10% | F11: 15% | G11: 15% | H11: 10% | I11: 20% | J11: 30% | L11: =SUM(tblAsignaturas[[#This Row],[Deberes]:[Otros]]) -> 100%
C12: Matemáticas 2 | D12: 4.0 | E12: 15% | F12: 15% | G12: 10% | H12: 10% | I12: 15% | J12: 30% | K12: 5% | L12: =SUM(tblAsignaturas[[#This Row],[Deberes]:[Otros]]) -> 100%
C13: Programación avanzada en Java | D13: 5.0 | E13: 15% | F13: 15% | G13: 10% | H13: 10% | I13: 20% | J13: 30% | L13: =SUM(tblAsignaturas[[#This Row],[Deberes]:[Otros]]) -> 100%
C14: Español | D14: 3.0 | E14: 10% | F14: 15% | G14: 17% | H14: 13% | I14: 20% | J14: 20% | K14: 5% | L14: =SUM(tblAsignaturas[[#This Row],[Deberes]:[Otros]]) -> 100%
C15: Redacción | D15: 2.0 | E15: 15% | F15: 15% | G15: 12% | H15: 15% | I15: 15% | J15: 25% | K15: 3% | L15: =SUM(tblAsignaturas[[#This Row],[Deberes]:[Otros]]) -> 100%

Sheet Cálculos (hidden)
B1: Cálculos
C2: Esta hoja de cálculo, que le permite calcular las notas y la nota media, debe quedar oculta. Cualquier cambio que realice en ella puede ocasionar errores.
C4: Lista de asignaturas actuales | D4: Resultados (sobre 1) | AC4: Cálculo de las notas
C5: Asignatura | D5: 1 | E5: 2 | F5: 3 | G5: 4 | H5: 5 | I5: 6 | J5: 7 | K5: 8 | L5: 9 | M5: 10 | N5: 11 | O5: 12 | P5: 13 | Q5: 14 | R5: 15 | S5: 16 | T5: 17 | U5: 18 | V5: 19 | W5: 20 | X5: 21 | Y5: 22 | Z5: 23 | AA5: 24 | AB5: 25 | AC5: =tblAsignaturas[[#Headers],[Deberes]] -> Deberes | AD5: =tblAsignaturas[[#Headers],[Redacción]] -> Redacción | AE5: =tblAsignaturas[[#Headers],[Concurso]] -> Concurso | AF5: =tblAsignaturas[[#Headers],[Proyecto]] -> Proyecto | AG5: =tblAsignaturas[[#Headers],[Examen parcial]] -> Examen parcial | AH5: =tblAsignaturas[[#Headers],[Examen final]] -> Examen final | AI5: =tblAsignaturas[[#Headers],[Otros]] -> Otros | AJ5: Total | AK5: Total de puntos posibles | AL5: % total | AM5: Calificación numérica | AN5: Calificación
C6: =IF(Configuración!C9="","",Configuración!C9) -> Francés moderno | D6: =IFERROR(INDEX(tblPuntuacionesAsignatura[],MATCH($C6:$C30&D$5:AB$5,Cálculos!$C$33:$C$657,0),4),"") -> 80% | E6: 90% | F6: 80% | AC6: =IFERROR(AVERAGEIFS(tblPuntuacionesAsignatura[Puntuación],tblPuntuacionesAsignatura[Asignatura],Cálculos!$C6,tblPuntuacionesAsignatura[Tipo],Cálculos!AC$5)*Configuración!E9,"") -> 0.08333333333 | AD6: =IFERROR(AVERAGEIFS(tblPuntuacionesAsignatura[Puntuación],tblPuntuacionesAsignatura[Asignatura],Cálculos!$C6,tblPuntuacionesAsignatura[Tipo],Cálculos!AD$5)*Configuración!F9,"") ->  | AE6: =IFERROR(AVERAGEIFS(tblPuntuacionesAsignatura[Puntuación],tblPuntuacionesAsignatura[Asignatura],Cálculos!$C6,tblPuntuacionesAsignatura[Tipo],Cálculos!AE$5)*Configuración!G9,"") ->  | AF6: =IFERROR(AVERAGEIFS(tblPuntuacionesAsignatura[Puntuación],tblPuntuacionesAsignatura[Asignatura],Cálculos!$C6,tblPuntuacionesAsignatura[Tipo],Cálculos!AF$5)*Configuración!H9,"") ->  | AG6: =IFERROR(AVERAGEIFS(tblPuntuacionesAsignatura[Puntuación],tblPuntuacionesAsignatura[Asignatura],Cálculos!$C6,tblPuntuacionesAsignatura[Tipo],Cálculos!AG$5)*Configuración!I9,"") ->  | AH6: =IFERROR(AVERAGEIFS(tblPuntuacionesAsignatura[Puntuación],tblPuntuacionesAsignatura[Asignatura],Cálculos!$C6,tblPuntuacionesAsignatura[Tipo],Cálculos!AH$5)*Configuración!J9,"") ->  | AI6: =IFERROR(AVERAGEIFS(tblPuntuacionesAsignatura[Puntuación],tblPuntuacionesAsignatura[Asignatura],Cálculos!$C6,tblPuntuacionesAsignatura[Tipo],Cálculos!AI$5)*Configuración!K9,"") ->  | AJ6: =SUM(AC6:AI6) -> 0.08333333333 | AK6: =SUMIFS(Configuración!E9:K9,Cálculos!AC6:AI6,">0") -> 0.1 | AL6: =IFERROR(AJ6/AK6,"") -> 83% | AM6: =IFERROR(HLOOKUP(AL6,lstAsignaciónPuntuaciones,3),"") -> 3 | AN6: =IFERROR(HLOOKUP(AL6,lstAsignaciónPuntuaciones,2),"") -> Notable
C7: =IF(Configuración!C10="","",Configuración!C10) -> Física teórica | D7: 95% | AC7: =IFERROR(AVERAGEIFS(tblPuntuacionesAsignatura[Puntuación],tblPuntuacionesAsignatura[Asignatura],Cálculos!$C7,tblPuntuacionesAsignatura[Tipo],Cálculos!AC$5)*Configuración!E10,"") -> 0.1425 | AD7: =IFERROR(AVERAGEIFS(tblPuntuacionesAsignatura[Puntuación],tblPuntuacionesAsignatura[Asignatura],Cálculos!$C7,tblPuntuacionesAsignatura[Tipo],Cálculos!AD$5)*Configuración!F10,"") ->  | AE7: =IFERROR(AVERAGEIFS(tblPuntuacionesAsignatura[Puntuación],tblPuntuacionesAsignatura[Asignatura],Cálculos!$C7,tblPuntuacionesAsignatura[Tipo],Cálculos!AE$5)*Configuración!G10,"") ->  | AF7: =IFERROR(AVERAGEIFS(tblPuntuacionesAsignatura[Puntuación],tblPuntuacionesAsignatura[Asignatura],Cálculos!$C7,tblPuntuacionesAsignatura[Tipo],Cálculos!AF$5)*Configuración!H10,"") ->  | AG7: =IFERROR(AVERAGEIFS(tblPuntuacionesAsignatura[Puntuación],tblPuntuacionesAsignatura[Asignatura],Cálculos!$C7,tblPuntuacionesAsignatura[Tipo],Cálculos!AG$5)*Configuración!I10,"") ->  | AH7: =IFERROR(AVERAGEIFS(tblPuntuacionesAsignatura[Puntuación],tblPuntuacionesAsignatura[Asignatura],Cálculos!$C7,tblPuntuacionesAsignatura[Tipo],Cálculos!AH$5)*Configuración!J10,"") ->  | AI7: =IFERROR(AVERAGEIFS(tblPuntuacionesAsignatura[Puntuación],tblPuntuacionesAsignatura[Asignatura],Cálculos!$C7,tblPuntuacionesAsignatura[Tipo],Cálculos!AI$5)*Configuración!K10,"") ->  | AJ7: =SUM(AC7:AI7) -> 0.1425 | AK7: =SUMIFS(Configuración!E10:K10,Cálculos!AC7:AI7,">0") -> 0.15 | AL7: =IFERROR(AJ7/AK7,"") -> 95% | AM7: 4 | AN7: Sobresaliente
C8: =IF(Configuración!C11="","",Configuración!C11) -> Matemáticas 1 | D8: 80% | E8: 80% | AC8: =IFERROR(AVERAGEIFS(tblPuntuacionesAsignatura[Puntuación],tblPuntuacionesAsignatura[Asignatura],Cálculos!$C8,tblPuntuacionesAsignatura[Tipo],Cálculos!AC$5)*Configuración!E11,"") -> 0.08 | AD8: =IFERROR(AVERAGEIFS(tblPuntuacionesAsignatura[Puntuación],tblPuntuacionesAsignatura[Asignatura],Cálculos!$C8,tblPuntuacionesAsignatura[Tipo],Cálculos!AD$5)*Configuración!F11,"") ->  | AE8: =IFERROR(AVERAGEIFS(tblPuntuacionesAsignatura[Puntuación],tblPuntuacionesAsignatura[Asignatura],Cálculos!$C8,tblPuntuacionesAsignatura[Tipo],Cálculos!AE$5)*Configuración!G11,"") ->  | AF8: =IFERROR(AVERAGEIFS(tblPuntuacionesAsignatura[Puntuación],tblPuntuacionesAsignatura[Asignatura],Cálculos!$C8,tblPuntuacionesAsignatura[Tipo],Cálculos!AF$5)*Configuración!H11,"") ->  | AG8: =IFERROR(AVERAGEIFS(tblPuntuacionesAsignatura[Puntuación],tblPuntuacionesAsignatura[Asignatura],Cálculos!$C8,tblPuntuacionesAsignatura[Tipo],Cálculos!AG$5)*Configuración!I11,"") ->  | AH8: =IFERROR(AVERAGEIFS(tblPuntuacionesAsignatura[Puntuación],tblPuntuacionesAsignatura[Asignatura],Cálculos!$C8,tblPuntuacionesAsignatura[Tipo],Cálculos!AH$5)*Configuración!J11,"") ->  | AI8: =IFERROR(AVERAGEIFS(tblPuntuacionesAsignatura[Puntuación],tblPuntuacionesAsignatura[Asignatura],Cálculos!$C8,tblPuntuacionesAsignatura[Tipo],Cálculos!AI$5)*Configuración!K11,"") ->  | AJ8: 0.08 | AK8: =SUMIFS(Configuración!E11:K11,Cálculos!AC8:AI8,">0") -> 0.1 | AL8: 80% | AM8: 2.67 | AN8: Notable -
C9: =IF(Configuración!C12="","",Configuración!C12) -> Matemáticas 2 | D9: 85% | E9: 95% | AC9: =IFERROR(AVERAGEIFS(tblPuntuacionesAsignatura[Puntuación],tblPuntuacionesAsignatura[Asignatura],Cálculos!$C9,tblPuntuacionesAsignatura[Tipo],Cálculos!AC$5)*Configuración!E12,"") -> 0.1275 | AD9: =IFERROR(AVERAGEIFS(tblPuntuacionesAsignatura[Puntuación],tblPuntuacionesAsignatura[Asignatura],Cálculos!$C9,tblPuntuacionesAsignatura[Tipo],Cálculos!AD$5)*Configuración!F12,"") ->  | AE9: =IFERROR(AVERAGEIFS(tblPuntuacionesAsignatura[Puntuación],tblPuntuacionesAsignatura[Asignatura],Cálculos!$C9,tblPuntuacionesAsignatura[Tipo],Cálculos!AE$5)*Configuración!G12,"") -> 0.095 | AF9: =IFERROR(AVERAGEIFS(tblPuntuacionesAsignatura[Puntuación],tblPuntuacionesAsignatura[Asignatura],Cálculos!$C9,tblPuntuacionesAsignatura[Tipo],Cálculos!AF$5)*Configuración!H12,"") ->  | AG9: =IFERROR(AVERAGEIFS(tblPuntuacionesAsignatura[Puntuación],tblPuntuacionesAsignatura[Asignatura],Cálculos!$C9,tblPuntuacionesAsignatura[Tipo],Cálculos!AG$5)*Configuración!I12,"") ->  | AH9: =IFERROR(AVERAGEIFS(tblPuntuacionesAsignatura[Puntuación],tblPuntuacionesAsignatura[Asignatura],Cálculos!$C9,tblPuntuacionesAsignatura[Tipo],Cálculos!AH$5)*Configuración!J12,"") ->  | AI9: =IFERROR(AVERAGEIFS(tblPuntuacionesAsignatura[Puntuación],tblPuntuacionesAsignatura[Asignatura],Cálculos!$C9,tblPuntuacionesAsignatura[Tipo],Cálculos!AI$5)*Configuración!K12,"") ->  | AJ9: 0.2225 | AK9: =SUMIFS(Configuración!E12:K12,Cálculos!AC9:AI9,">0") -> 0.25 | AL9: 89% | AM9: 3.33 | AN9: Notable +
C10: =IF(Configuración!C13="","",Configuración!C13) -> Programación avanzada en Java | D10: 75% | AC10: =IFERROR(AVERAGEIFS(tblPuntuacionesAsignatura[Puntuación],tblPuntuacionesAsignatura[Asignatura],Cálculos!$C10,tblPuntuacionesAsignatura[Tipo],Cálculos!AC$5)*Configuración!E13,"") ->  | AD10: =IFERROR(AVERAGEIFS(tblPuntuacionesAsignatura[Puntuación],tblPuntuacionesAsignatura[Asignatura],Cálculos!$C10,tblPuntuacionesAsignatura[Tipo],Cálculos!AD$5)*Configuración!F13,"") ->  | AE10: =IFERROR(AVERAGEIFS(tblPuntuacionesAsignatura[Puntuación],tblPuntuacionesAsignatura[Asignatura],Cálculos!$C10,tblPuntuacionesAsignatura[Tipo],Cálculos!AE$5)*Configuración!G13,"") ->  | AF10: =IFERROR(AVERAGEIFS(tblPuntuacionesAsignatura[Puntuación],tblPuntuacionesAsignatura[Asignatura],Cálculos!$C10,tblPuntuacionesAsignatura[Tipo],Cálculos!AF$5)*Configuración!H13,"") ->  | AG10: =IFERROR(AVERAGEIFS(tblPuntuacionesAsignatura[Puntuación],tblPuntuacionesAsignatura[Asignatura],Cálculos!$C10,tblPuntuacionesAsignatura[Tipo],Cálculos!AG$5)*Configuración!I13,"") -> 0.15 | AH10: =IFERROR(AVERAGEIFS(tblPuntuacionesAsignatura[Puntuación],tblPuntuacionesAsignatura[Asignatura],Cálculos!$C10,tblPuntuacionesAsignatura[Tipo],Cálculos!AH$5)*Configuración!J13,"") ->  | AI10: =IFERROR(AVERAGEIFS(tblPuntuacionesAsignatura[Puntuación],tblPuntuacionesAsignatura[Asignatura],Cálculos!$C10,tblPuntuacionesAsignatura[Tipo],Cálculos!AI$5)*Configuración!K13,"") ->  | AJ10: 0.15 | AK10: =SUMIFS(Configuración!E13:K13,Cálculos!AC10:AI10,">0") -> 0.2 | AL10: 75% | AM10: 2 | AN10: Aprobado
C11: =IF(Configuración!C14="","",Configuración!C14) -> Español | D11: 50% | AC11: =IFERROR(AVERAGEIFS(tblPuntuacionesAsignatura[Puntuación],tblPuntuacionesAsignatura[Asignatura],Cálculos!$C11,tblPuntuacionesAsignatura[Tipo],Cálculos!AC$5)*Configuración!E14,"") -> 0.05 | AD11: =IFERROR(AVERAGEIFS(tblPuntuacionesAsignatura[Puntuación],tblPuntuacionesAsignatura[Asignatura],Cálculos!$C11,tblPuntuacionesAsignatura[Tipo],Cálculos!AD$5)*Configuración!F14,"") ->  | AE11: =IFERROR(AVERAGEIFS(tblPuntuacionesAsignatura[Puntuación],tblPuntuacionesAsignatura[Asignatura],Cálculos!$C11,tblPuntuacionesAsignatura[Tipo],Cálculos!AE$5)*Configuración!G14,"") ->  | AF11: =IFERROR(AVERAGEIFS(tblPuntuacionesAsignatura[Puntuación],tblPuntuacionesAsignatura[Asignatura],Cálculos!$C11,tblPuntuacionesAsignatura[Tipo],Cálculos!AF$5)*Configuración!H14,"") ->  | AG11: =IFERROR(AVERAGEIFS(tblPuntuacionesAsignatura[Puntuación],tblPuntuacionesAsignatura[Asignatura],Cálculos!$C11,tblPuntuacionesAsignatura[Tipo],Cálculos!AG$5)*Configuración!I14,"") ->  | AH11: =IFERROR(AVERAGEIFS(tblPuntuacionesAsignatura[Puntuación],tblPuntuacionesAsignatura[Asignatura],Cálculos!$C11,tblPuntuacionesAsignatura[Tipo],Cálculos!AH$5)*Configuración!J14,"") ->  | AI11: =IFERROR(AVERAGEIFS(tblPuntuacionesAsignatura[Puntuación],tblPuntuacionesAsignatura[Asignatura],Cálculos!$C11,tblPuntuacionesAsignatura[Tipo],Cálculos!AI$5)*Configuración!K14,"") ->  | AJ11: 0.05 | AK11: =SUMIFS(Configuración!E14:K14,Cálculos!AC11:AI11,">0") -> 0.1 | AL11: 50% | AM11: 0 | AN11: Suspenso
C12: =IF(Configuración!C15="","",Configuración!C15) -> Redacción | D12: 95% | AC12: =IFERROR(AVERAGEIFS(tblPuntuacionesAsignatura[Puntuación],tblPuntuacionesAsignatura[Asignatura],Cálculos!$C12,tblPuntuacionesAsignatura[Tipo],Cálculos!AC$5)*Configuración!E15,"") ->  | AD12: =IFERROR(AVERAGEIFS(tblPuntuacionesAsignatura[Puntuación],tblPuntuacionesAsignatura[Asignatura],Cálculos!$C12,tblPuntuacionesAsignatura[Tipo],Cálculos!AD$5)*Configuración!F15,"") -> 0.1425 | AE12: =IFERROR(AVERAGEIFS(tblPuntuacionesAsignatura[Puntuación],tblPuntuacionesAsignatura[Asignatura],Cálculos!$C12,tblPuntuacionesAsignatura[Tipo],Cálculos!AE$5)*Configuración!G15,"") ->  | AF12: =IFERROR(AVERAGEIFS(tblPuntuacionesAsignatura[Puntuación],tblPuntuacionesAsignatura[Asignatura],Cálculos!$C12,tblPuntuacionesAsignatura[Tipo],Cálculos!AF$5)*Configuración!H15,"") ->  | AG12: =IFERROR(AVERAGEIFS(tblPuntuacionesAsignatura[Puntuación],tblPuntuacionesAsignatura[Asignatura],Cálculos!$C12,tblPuntuacionesAsignatura[Tipo],Cálculos!AG$5)*Configuración!I15,"") ->  | AH12: =IFERROR(AVERAGEIFS(tblPuntuacionesAsignatura[Puntuación],tblPuntuacionesAsignatura[Asignatura],Cálculos!$C12,tblPuntuacionesAsignatura[Tipo],Cálculos!AH$5)*Configuración!J15,"") ->  | AI12: =IFERROR(AVERAGEIFS(tblPuntuacionesAsignatura[Puntuación],tblPuntuacionesAsignatura[Asignatura],Cálculos!$C12,tblPuntuacionesAsignatura[Tipo],Cálculos!AI$5)*Configuración!K15,"") ->  | AJ12: 0.1425 | AK12: =SUMIFS(Configuración!E15:K15,Cálculos!AC12:AI12,">0") -> 0.15 | AL12: 95% | AM12: 4 | AN12: Sobresaliente
C13: =IF(Configuración!C16="","",Configuración!C16) ->  | AC13: =IFERROR(AVERAGEIFS(tblPuntuacionesAsignatura[Puntuación],tblPuntuacionesAsignatura[Asignatura],Cálculos!$C13,tblPuntuacionesAsignatura[Tipo],Cálculos!AC$5)*Configuración!E16,"") ->  | AD13: =IFERROR(AVERAGEIFS(tblPuntuacionesAsignatura[Puntuación],tblPuntuacionesAsignatura[Asignatura],Cálculos!$C13,tblPuntuacionesAsignatura[Tipo],Cálculos!AD$5)*Configuración!F16,"") ->  | AE13: =IFERROR(AVERAGEIFS(tblPuntuacionesAsignatura[Puntuación],tblPuntuacionesAsignatura[Asignatura],Cálculos!$C13,tblPuntuacionesAsignatura[Tipo],Cálculos!AE$5)*Configuración!G16,"") ->  | AF13: =IFERROR(AVERAGEIFS(tblPuntuacionesAsignatura[Puntuación],tblPuntuacionesAsignatura[Asignatura],Cálculos!$C13,tblPuntuacionesAsignatura[Tipo],Cálculos!AF$5)*Configuración!H16,"") ->  | AG13: =IFERROR(AVERAGEIFS(tblPuntuacionesAsignatura[Puntuación],tblPuntuacionesAsignatura[Asignatura],Cálculos!$C13,tblPuntuacionesAsignatura[Tipo],Cálculos!AG$5)*Configuración!I16,"") ->  | AH13: =IFERROR(AVERAGEIFS(tblPuntuacionesAsignatura[Puntuación],tblPuntuacionesAsignatura[Asignatura],Cálculos!$C13,tblPuntuacionesAsignatura[Tipo],Cálculos!AH$5)*Configuración!J16,"") ->  | AI13: =IFERROR(AVERAGEIFS(tblPuntuacionesAsignatura[Puntuación],tblPuntuacionesAsignatura[Asignatura],Cálculos!$C13,tblPuntuacionesAsignatura[Tipo],Cálculos!AI$5)*Configuración!K16,"") ->  | AJ13: 0 | AK13: =SUMIFS(Configuración!E16:K16,Cálculos!AC13:AI13,">0") -> 0
C14: =IF(Configuración!C17="","",Configuración!C17) ->  | AC14: =IFERROR(AVERAGEIFS(tblPuntuacionesAsignatura[Puntuación],tblPuntuacionesAsignatura[Asignatura],Cálculos!$C14,tblPuntuacionesAsignatura[Tipo],Cálculos!AC$5)*Configuración!E17,"") ->  | AD14: =IFERROR(AVERAGEIFS(tblPuntuacionesAsignatura[Puntuación],tblPuntuacionesAsignatura[Asignatura],Cálculos!$C14,tblPuntuacionesAsignatura[Tipo],Cálculos!AD$5)*Configuración!F17,"") ->  | AE14: =IFERROR(AVERAGEIFS(tblPuntuacionesAsignatura[Puntuación],tblPuntuacionesAsignatura[Asignatura],Cálculos!$C14,tblPuntuacionesAsignatura[Tipo],Cálculos!AE$5)*Configuración!G17,"") ->  | AF14: =IFERROR(AVERAGEIFS(tblPuntuacionesAsignatura[Puntuación],tblPuntuacionesAsignatura[Asignatura],Cálculos!$C14,tblPuntuacionesAsignatura[Tipo],Cálculos!AF$5)*Configuración!H17,"") ->  | AG14: =IFERROR(AVERAGEIFS(tblPuntuacionesAsignatura[Puntuación],tblPuntuacionesAsignatura[Asignatura],Cálculos!$C14,tblPuntuacionesAsignatura[Tipo],Cálculos!AG$5)*Configuración!I17,"") ->  | AH14: =IFERROR(AVERAGEIFS(tblPuntuacionesAsignatura[Puntuación],tblPuntuacionesAsignatura[Asignatura],Cálculos!$C14,tblPuntuacionesAsignatura[Tipo],Cálculos!AH$5)*Configuración!J17,"") ->  | AI14: =IFERROR(AVERAGEIFS(tblPuntuacionesAsignatura[Puntuación],tblPuntuacionesAsignatura[Asignatura],Cálculos!$C14,tblPuntuacionesAsignatura[Tipo],Cálculos!AI$5)*Configuración!K17,"") ->  | AJ14: 0 | AK14: =SUMIFS(Configuración!E17:K17,Cálculos!AC14:AI14,">0") -> 0
C15: =IF(Configuración!C18="","",Configuración!C18) ->  | AC15: =IFERROR(AVERAGEIFS(tblPuntuacionesAsignatura[Puntuación],tblPuntuacionesAsignatura[Asignatura],Cálculos!$C15,tblPuntuacionesAsignatura[Tipo],Cálculos!AC$5)*Configuración!E18,"") ->  | AD15: =IFERROR(AVERAGEIFS(tblPuntuacionesAsignatura[Puntuación],tblPuntuacionesAsignatura[Asignatura],Cálculos!$C15,tblPuntuacionesAsignatura[Tipo],Cálculos!AD$5)*Configuración!F18,"") ->  | AE15: =IFERROR(AVERAGEIFS(tblPuntuacionesAsignatura[Puntuación],tblPuntuacionesAsignatura[Asignatura],Cálculos!$C15,tblPuntuacionesAsignatura[Tipo],Cálculos!AE$5)*Configuración!G18,"") ->  | AF15: =IFERROR(AVERAGEIFS(tblPuntuacionesAsignatura[Puntuación],tblPuntuacionesAsignatura[Asignatura],Cálculos!$C15,tblPuntuacionesAsignatura[Tipo],Cálculos!AF$5)*Configuración!H18,"") ->  | AG15: =IFERROR(AVERAGEIFS(tblPuntuacionesAsignatura[Puntuación],tblPuntuacionesAsignatura[Asignatura],Cálculos!$C15,tblPuntuacionesAsignatura[Tipo],Cálculos!AG$5)*Configuración!I18,"") ->  | AH15: =IFERROR(AVERAGEIFS(tblPuntuacionesAsignatura[Puntuación],tblPuntuacionesAsignatura[Asignatura],Cálculos!$C15,tblPuntuacionesAsignatura[Tipo],Cálculos!AH$5)*Configuración!J18,"") ->  | AI15: =IFERROR(AVERAGEIFS(tblPuntuacionesAsignatura[Puntuación],tblPuntuacionesAsignatura[Asignatura],Cálculos!$C15,tblPuntuacionesAsignatura[Tipo],Cálculos!AI$5)*Configuración!K18,"") ->  | AJ15: 0 | AK15: =SUMIFS(Configuración!E18:K18,Cálculos!AC15:AI15,">0") -> 0
C16: =IF(Configuración!C19="","",Configuración!C19) ->  | AC16: =IFERROR(AVERAGEIFS(tblPuntuacionesAsignatura[Puntuación],tblPuntuacionesAsignatura[Asignatura],Cálculos!$C16,tblPuntuacionesAsignatura[Tipo],Cálculos!AC$5)*Configuración!E19,"") ->  | AD16: =IFERROR(AVERAGEIFS(tblPuntuacionesAsignatura[Puntuación],tblPuntuacionesAsignatura[Asignatura],Cálculos!$C16,tblPuntuacionesAsignatura[Tipo],Cálculos!AD$5)*Configuración!F19,"") ->  | AE16: =IFERROR(AVERAGEIFS(tblPuntuacionesAsignatura[Puntuación],tblPuntuacionesAsignatura[Asignatura],Cálculos!$C16,tblPuntuacionesAsignatura[Tipo],Cálculos!AE$5)*Configuración!G19,"") ->  | AF16: =IFERROR(AVERAGEIFS(tblPuntuacionesAsignatura[Puntuación],tblPuntuacionesAsignatura[Asignatura],Cálculos!$C16,tblPuntuacionesAsignatura[Tipo],Cálculos!AF$5)*Configuración!H19,"") ->  | AG16: =IFERROR(AVERAGEIFS(tblPuntuacionesAsignatura[Puntuación],tblPuntuacionesAsignatura[Asignatura],Cálculos!$C16,tblPuntuacionesAsignatura[Tipo],Cálculos!AG$5)*Configuración!I19,"") ->  | AH16: =IFERROR(AVERAGEIFS(tblPuntuacionesAsignatura[Puntuación],tblPuntuacionesAsignatura[Asignatura],Cálculos!$C16,tblPuntuacionesAsignatura[Tipo],Cálculos!AH$5)*Configuración!J19,"") ->  | AI16: =IFERROR(AVERAGEIFS(tblPuntuacionesAsignatura[Puntuación],tblPuntuacionesAsignatura[Asignatura],Cálculos!$C16,tblPuntuacionesAsignatura[Tipo],Cálculos!AI$5)*Configuración!K19,"") ->  | AJ16: 0 | AK16: =SUMIFS(Configuración!E19:K19,Cálculos!AC16:AI16,">0") -> 0
C17: =IF(Configuración!C20="","",Configuración!C20) ->  | AC17: =IFERROR(AVERAGEIFS(tblPuntuacionesAsignatura[Puntuación],tblPuntuacionesAsignatura[Asignatura],Cálculos!$C17,tblPuntuacionesAsignatura[Tipo],Cálculos!AC$5)*Configuración!E20,"") ->  | AD17: =IFERROR(AVERAGEIFS(tblPuntuacionesAsignatura[Puntuación],tblPuntuacionesAsignatura[Asignatura],Cálculos!$C17,tblPuntuacionesAsignatura[Tipo],Cálculos!AD$5)*Configuración!F20,"") ->  | AE17: =IFERROR(AVERAGEIFS(tblPuntuacionesAsignatura[Puntuación],tblPuntuacionesAsignatura[Asignatura],Cálculos!$C17,tblPuntuacionesAsignatura[Tipo],Cálculos!AE$5)*Configuración!G20,"") ->  | AF17: =IFERROR(AVERAGEIFS(tblPuntuacionesAsignatura[Puntuación],tblPuntuacionesAsignatura[Asignatura],Cálculos!$C17,tblPuntuacionesAsignatura[Tipo],Cálculos!AF$5)*Configuración!H20,"") ->  | AG17: =IFERROR(AVERAGEIFS(tblPuntuacionesAsignatura[Puntuación],tblPuntuacionesAsignatura[Asignatura],Cálculos!$C17,tblPuntuacionesAsignatura[Tipo],Cálculos!AG$5)*Configuración!I20,"") ->  | AH17: =IFERROR(AVERAGEIFS(tblPuntuacionesAsignatura[Puntuación],tblPuntuacionesAsignatura[Asignatura],Cálculos!$C17,tblPuntuacionesAsignatura[Tipo],Cálculos!AH$5)*Configuración!J20,"") ->  | AI17: =IFERROR(AVERAGEIFS(tblPuntuacionesAsignatura[Puntuación],tblPuntuacionesAsignatura[Asignatura],Cálculos!$C17,tblPuntuacionesAsignatura[Tipo],Cálculos!AI$5)*Configuración!K20,"") ->  | AJ17: 0 | AK17: =SUMIFS(Configuración!E20:K20,Cálculos!AC17:AI17,">0") -> 0
C18: =IF(Configuración!C21="","",Configuración!C21) ->  | AC18: =IFERROR(AVERAGEIFS(tblPuntuacionesAsignatura[Puntuación],tblPuntuacionesAsignatura[Asignatura],Cálculos!$C18,tblPuntuacionesAsignatura[Tipo],Cálculos!AC$5)*Configuración!E21,"") ->  | AD18: =IFERROR(AVERAGEIFS(tblPuntuacionesAsignatura[Puntuación],tblPuntuacionesAsignatura[Asignatura],Cálculos!$C18,tblPuntuacionesAsignatura[Tipo],Cálculos!AD$5)*Configuración!F21,"") ->  | AE18: =IFERROR(AVERAGEIFS(tblPuntuacionesAsignatura[Puntuación],tblPuntuacionesAsignatura[Asignatura],Cálculos!$C18,tblPuntuacionesAsignatura[Tipo],Cálculos!AE$5)*Configuración!G21,"") ->  | AF18: =IFERROR(AVERAGEIFS(tblPuntuacionesAsignatura[Puntuación],tblPuntuacionesAsignatura[Asignatura],Cálculos!$C18,tblPuntuacionesAsignatura[Tipo],Cálculos!AF$5)*Configuración!H21,"") ->  | AG18: =IFERROR(AVERAGEIFS(tblPuntuacionesAsignatura[Puntuación],tblPuntuacionesAsignatura[Asignatura],Cálculos!$C18,tblPuntuacionesAsignatura[Tipo],Cálculos!AG$5)*Configuración!I21,"") ->  | AH18: =IFERROR(AVERAGEIFS(tblPuntuacionesAsignatura[Puntuación],tblPuntuacionesAsignatura[Asignatura],Cálculos!$C18,tblPuntuacionesAsignatura[Tipo],Cálculos!AH$5)*Configuración!J21,"") ->  | AI18: =IFERROR(AVERAGEIFS(tblPuntuacionesAsignatura[Puntuación],tblPuntuacionesAsignatura[Asignatura],Cálculos!$C18,tblPuntuacionesAsignatura[Tipo],Cálculos!AI$5)*Configuración!K21,"") ->  | AJ18: 0 | AK18: =SUMIFS(Configuración!E21:K21,Cálculos!AC18:AI18,">0") -> 0
C19: =IF(Configuración!C22="","",Configuración!C22) ->  | AC19: =IFERROR(AVERAGEIFS(tblPuntuacionesAsignatura[Puntuación],tblPuntuacionesAsignatura[Asignatura],Cálculos!$C19,tblPuntuacionesAsignatura[Tipo],Cálculos!AC$5)*Configuración!E22,"") ->  | AD19: =IFERROR(AVERAGEIFS(tblPuntuacionesAsignatura[Puntuación],tblPuntuacionesAsignatura[Asignatura],Cálculos!$C19,tblPuntuacionesAsignatura[Tipo],Cálculos!AD$5)*Configuración!F22,"") ->  | AE19: =IFERROR(AVERAGEIFS(tblPuntuacionesAsignatura[Puntuación],tblPuntuacionesAsignatura[Asignatura],Cálculos!$C19,tblPuntuacionesAsignatura[Tipo],Cálculos!AE$5)*Configuración!G22,"") ->  | AF19: =IFERROR(AVERAGEIFS(tblPuntuacionesAsignatura[Puntuación],tblPuntuacionesAsignatura[Asignatura],Cálculos!$C19,tblPuntuacionesAsignatura[Tipo],Cálculos!AF$5)*Configuración!H22,"") ->  | AG19: =IFERROR(AVERAGEIFS(tblPuntuacionesAsignatura[Puntuación],tblPuntuacionesAsignatura[Asignatura],Cálculos!$C19,tblPuntuacionesAsignatura[Tipo],Cálculos!AG$5)*Configuración!I22,"") ->  | AH19: =IFERROR(AVERAGEIFS(tblPuntuacionesAsignatura[Puntuación],tblPuntuacionesAsignatura[Asignatura],Cálculos!$C19,tblPuntuacionesAsignatura[Tipo],Cálculos!AH$5)*Configuración!J22,"") ->  | AI19: =IFERROR(AVERAGEIFS(tblPuntuacionesAsignatura[Puntuación],tblPuntuacionesAsignatura[Asignatura],Cálculos!$C19,tblPuntuacionesAsignatura[Tipo],Cálculos!AI$5)*Configuración!K22,"") ->  | AJ19: 0 | AK19: =SUMIFS(Configuración!E22:K22,Cálculos!AC19:AI19,">0") -> 0
C20: =IF(Configuración!C23="","",Configuración!C23) ->  | AC20: =IFERROR(AVERAGEIFS(tblPuntuacionesAsignatura[Puntuación],tblPuntuacionesAsignatura[Asignatura],Cálculos!$C20,tblPuntuacionesAsignatura[Tipo],Cálculos!AC$5)*Configuración!E23,"") ->  | AD20: =IFERROR(AVERAGEIFS(tblPuntuacionesAsignatura[Puntuación],tblPuntuacionesAsignatura[Asignatura],Cálculos!$C20,tblPuntuacionesAsignatura[Tipo],Cálculos!AD$5)*Configuración!F23,"") ->  | AE20: =IFERROR(AVERAGEIFS(tblPuntuacionesAsignatura[Puntuación],tblPuntuacionesAsignatura[Asignatura],Cálculos!$C20,tblPuntuacionesAsignatura[Tipo],Cálculos!AE$5)*Configuración!G23,"") ->  | AF20: =IFERROR(AVERAGEIFS(tblPuntuacionesAsignatura[Puntuación],tblPuntuacionesAsignatura[Asignatura],Cálculos!$C20,tblPuntuacionesAsignatura[Tipo],Cálculos!AF$5)*Configuración!H23,"") ->  | AG20: =IFERROR(AVERAGEIFS(tblPuntuacionesAsignatura[Puntuación],tblPuntuacionesAsignatura[Asignatura],Cálculos!$C20,tblPuntuacionesAsignatura[Tipo],Cálculos!AG$5)*Configuración!I23,"") ->  | AH20: =IFERROR(AVERAGEIFS(tblPuntuacionesAsignatura[Puntuación],tblPuntuacionesAsignatura[Asignatura],Cálculos!$C20,tblPuntuacionesAsignatura[Tipo],Cálculos!AH$5)*Configuración!J23,"") ->  | AI20: =IFERROR(AVERAGEIFS(tblPuntuacionesAsignatura[Puntuación],tblPuntuacionesAsignatura[Asignatura],Cálculos!$C20,tblPuntuacionesAsignatura[Tipo],Cálculos!AI$5)*Configuración!K23,"") ->  | AJ20: 0 | AK20: =SUMIFS(Configuración!E23:K23,Cálculos!AC20:AI20,">0") -> 0
C21: =IF(Configuración!C24="","",Configuración!C24) ->  | AC21: =IFERROR(AVERAGEIFS(tblPuntuacionesAsignatura[Puntuación],tblPuntuacionesAsignatura[Asignatura],Cálculos!$C21,tblPuntuacionesAsignatura[Tipo],Cálculos!AC$5)*Configuración!E24,"") ->  | AD21: =IFERROR(AVERAGEIFS(tblPuntuacionesAsignatura[Puntuación],tblPuntuacionesAsignatura[Asignatura],Cálculos!$C21,tblPuntuacionesAsignatura[Tipo],Cálculos!AD$5)*Configuración!F24,"") ->  | AE21: =IFERROR(AVERAGEIFS(tblPuntuacionesAsignatura[Puntuación],tblPuntuacionesAsignatura[Asignatura],Cálculos!$C21,tblPuntuacionesAsignatura[Tipo],Cálculos!AE$5)*Configuración!G24,"") ->  | AF21: =IFERROR(AVERAGEIFS(tblPuntuacionesAsignatura[Puntuación],tblPuntuacionesAsignatura[Asignatura],Cálculos!$C21,tblPuntuacionesAsignatura[Tipo],Cálculos!AF$5)*Configuración!H24,"") ->  | AG21: =IFERROR(AVERAGEIFS(tblPuntuacionesAsignatura[Puntuación],tblPuntuacionesAsignatura[Asignatura],Cálculos!$C21,tblPuntuacionesAsignatura[Tipo],Cálculos!AG$5)*Configuración!I24,"") ->  | AH21: =IFERROR(AVERAGEIFS(tblPuntuacionesAsignatura[Puntuación],tblPuntuacionesAsignatura[Asignatura],Cálculos!$C21,tblPuntuacionesAsignatura[Tipo],Cálculos!AH$5)*Configuración!J24,"") ->  | AI21: =IFERROR(AVERAGEIFS(tblPuntuacionesAsignatura[Puntuación],tblPuntuacionesAsignatura[Asignatura],Cálculos!$C21,tblPuntuacionesAsignatura[Tipo],Cálculos!AI$5)*Configuración!K24,"") ->  | AJ21: 0 | AK21: =SUMIFS(Configuración!E24:K24,Cálculos!AC21:AI21,">0") -> 0
C22: =IF(Configuración!C25="","",Configuración!C25) ->  | AC22: =IFERROR(AVERAGEIFS(tblPuntuacionesAsignatura[Puntuación],tblPuntuacionesAsignatura[Asignatura],Cálculos!$C22,tblPuntuacionesAsignatura[Tipo],Cálculos!AC$5)*Configuración!E25,"") ->  | AD22: =IFERROR(AVERAGEIFS(tblPuntuacionesAsignatura[Puntuación],tblPuntuacionesAsignatura[Asignatura],Cálculos!$C22,tblPuntuacionesAsignatura[Tipo],Cálculos!AD$5)*Configuración!F25,"") ->  | AE22: =IFERROR(AVERAGEIFS(tblPuntuacionesAsignatura[Puntuación],tblPuntuacionesAsignatura[Asignatura],Cálculos!$C22,tblPuntuacionesAsignatura[Tipo],Cálculos!AE$5)*Configuración!G25,"") ->  | AF22: =IFERROR(AVERAGEIFS(tblPuntuacionesAsignatura[Puntuación],tblPuntuacionesAsignatura[Asignatura],Cálculos!$C22,tblPuntuacionesAsignatura[Tipo],Cálculos!AF$5)*Configuración!H25,"") ->  | AG22: =IFERROR(AVERAGEIFS(tblPuntuacionesAsignatura[Puntuación],tblPuntuacionesAsignatura[Asignatura],Cálculos!$C22,tblPuntuacionesAsignatura[Tipo],Cálculos!AG$5)*Configuración!I25,"") ->  | AH22: =IFERROR(AVERAGEIFS(tblPuntuacionesAsignatura[Puntuación],tblPuntuacionesAsignatura[Asignatura],Cálculos!$C22,tblPuntuacionesAsignatura[Tipo],Cálculos!AH$5)*Configuración!J25,"") ->  | AI22: =IFERROR(AVERAGEIFS(tblPuntuacionesAsignatura[Puntuación],tblPuntuacionesAsignatura[Asignatura],Cálculos!$C22,tblPuntuacionesAsignatura[Tipo],Cálculos!AI$5)*Configuración!K25,"") ->  | AJ22: 0 | AK22: =SUMIFS(Configuración!E25:K25,Cálculos!AC22:AI22,">0") -> 0
C23: =IF(Configuración!C26="","",Configuración!C26) ->  | AC23: =IFERROR(AVERAGEIFS(tblPuntuacionesAsignatura[Puntuación],tblPuntuacionesAsignatura[Asignatura],Cálculos!$C23,tblPuntuacionesAsignatura[Tipo],Cálculos!AC$5)*Configuración!E26,"") ->  | AD23: =IFERROR(AVERAGEIFS(tblPuntuacionesAsignatura[Puntuación],tblPuntuacionesAsignatura[Asignatura],Cálculos!$C23,tblPuntuacionesAsignatura[Tipo],Cálculos!AD$5)*Configuración!F26,"") ->  | AE23: =IFERROR(AVERAGEIFS(tblPuntuacionesAsignatura[Puntuación],tblPuntuacionesAsignatura[Asignatura],Cálculos!$C23,tblPuntuacionesAsignatura[Tipo],Cálculos!AE$5)*Configuración!G26,"") ->  | AF23: =IFERROR(AVERAGEIFS(tblPuntuacionesAsignatura[Puntuación],tblPuntuacionesAsignatura[Asignatura],Cálculos!$C23,tblPuntuacionesAsignatura[Tipo],Cálculos!AF$5)*Configuración!H26,"") ->  | AG23: =IFERROR(AVERAGEIFS(tblPuntuacionesAsignatura[Puntuación],tblPuntuacionesAsignatura[Asignatura],Cálculos!$C23,tblPuntuacionesAsignatura[Tipo],Cálculos!AG$5)*Configuración!I26,"") ->  | AH23: =IFERROR(AVERAGEIFS(tblPuntuacionesAsignatura[Puntuación],tblPuntuacionesAsignatura[Asignatura],Cálculos!$C23,tblPuntuacionesAsignatura[Tipo],Cálculos!AH$5)*Configuración!J26,"") ->  | AI23: =IFERROR(AVERAGEIFS(tblPuntuacionesAsignatura[Puntuación],tblPuntuacionesAsignatura[Asignatura],Cálculos!$C23,tblPuntuacionesAsignatura[Tipo],Cálculos!AI$5)*Configuración!K26,"") ->  | AJ23: 0 | AK23: =SUMIFS(Configuración!E26:K26,Cálculos!AC23:AI23,">0") -> 0
C24: =IF(Configuración!C27="","",Configuración!C27) ->  | AC24: =IFERROR(AVERAGEIFS(tblPuntuacionesAsignatura[Puntuación],tblPuntuacionesAsignatura[Asignatura],Cálculos!$C24,tblPuntuacionesAsignatura[Tipo],Cálculos!AC$5)*Configuración!E27,"") ->  | AD24: =IFERROR(AVERAGEIFS(tblPuntuacionesAsignatura[Puntuación],tblPuntuacionesAsignatura[Asignatura],Cálculos!$C24,tblPuntuacionesAsignatura[Tipo],Cálculos!AD$5)*Configuración!F27,"") ->  | AE24: =IFERROR(AVERAGEIFS(tblPuntuacionesAsignatura[Puntuación],tblPuntuacionesAsignatura[Asignatura],Cálculos!$C24,tblPuntuacionesAsignatura[Tipo],Cálculos!AE$5)*Configuración!G27,"") ->  | AF24: =IFERROR(AVERAGEIFS(tblPuntuacionesAsignatura[Puntuación],tblPuntuacionesAsignatura[Asignatura],Cálculos!$C24,tblPuntuacionesAsignatura[Tipo],Cálculos!AF$5)*Configuración!H27,"") ->  | AG24: =IFERROR(AVERAGEIFS(tblPuntuacionesAsignatura[Puntuación],tblPuntuacionesAsignatura[Asignatura],Cálculos!$C24,tblPuntuacionesAsignatura[Tipo],Cálculos!AG$5)*Configuración!I27,"") ->  | AH24: =IFERROR(AVERAGEIFS(tblPuntuacionesAsignatura[Puntuación],tblPuntuacionesAsignatura[Asignatura],Cálculos!$C24,tblPuntuacionesAsignatura[Tipo],Cálculos!AH$5)*Configuración!J27,"") ->  | AI24: =IFERROR(AVERAGEIFS(tblPuntuacionesAsignatura[Puntuación],tblPuntuacionesAsignatura[Asignatura],Cálculos!$C24,tblPuntuacionesAsignatura[Tipo],Cálculos!AI$5)*Configuración!K27,"") ->  | AJ24: 0 | AK24: =SUMIFS(Configuración!E27:K27,Cálculos!AC24:AI24,">0") -> 0
C25: =IF(Configuración!C28="","",Configuración!C28) ->  | AC25: =IFERROR(AVERAGEIFS(tblPuntuacionesAsignatura[Puntuación],tblPuntuacionesAsignatura[Asignatura],Cálculos!$C25,tblPuntuacionesAsignatura[Tipo],Cálculos!AC$5)*Configuración!E28,"") ->  | AD25: =IFERROR(AVERAGEIFS(tblPuntuacionesAsignatura[Puntuación],tblPuntuacionesAsignatura[Asignatura],Cálculos!$C25,tblPuntuacionesAsignatura[Tipo],Cálculos!AD$5)*Configuración!F28,"") ->  | AE25: =IFERROR(AVERAGEIFS(tblPuntuacionesAsignatura[Puntuación],tblPuntuacionesAsignatura[Asignatura],Cálculos!$C25,tblPuntuacionesAsignatura[Tipo],Cálculos!AE$5)*Configuración!G28,"") ->  | AF25: =IFERROR(AVERAGEIFS(tblPuntuacionesAsignatura[Puntuación],tblPuntuacionesAsignatura[Asignatura],Cálculos!$C25,tblPuntuacionesAsignatura[Tipo],Cálculos!AF$5)*Configuración!H28,"") ->  | AG25: =IFERROR(AVERAGEIFS(tblPuntuacionesAsignatura[Puntuación],tblPuntuacionesAsignatura[Asignatura],Cálculos!$C25,tblPuntuacionesAsignatura[Tipo],Cálculos!AG$5)*Configuración!I28,"") ->  | AH25: =IFERROR(AVERAGEIFS(tblPuntuacionesAsignatura[Puntuación],tblPuntuacionesAsignatura[Asignatura],Cálculos!$C25,tblPuntuacionesAsignatura[Tipo],Cálculos!AH$5)*Configuración!J28,"") ->  | AI25: =IFERROR(AVERAGEIFS(tblPuntuacionesAsignatura[Puntuación],tblPuntuacionesAsignatura[Asignatura],Cálculos!$C25,tblPuntuacionesAsignatura[Tipo],Cálculos!AI$5)*Configuración!K28,"") ->  | AJ25: 0 | AK25: =SUMIFS(Configuración!E28:K28,Cálculos!AC25:AI25,">0") -> 0
C26: =IF(Configuración!C29="","",Configuración!C29) ->  | AC26: =IFERROR(AVERAGEIFS(tblPuntuacionesAsignatura[Puntuación],tblPuntuacionesAsignatura[Asignatura],Cálculos!$C26,tblPuntuacionesAsignatura[Tipo],Cálculos!AC$5)*Configuración!E29,"") ->  | AD26: =IFERROR(AVERAGEIFS(tblPuntuacionesAsignatura[Puntuación],tblPuntuacionesAsignatura[Asignatura],Cálculos!$C26,tblPuntuacionesAsignatura[Tipo],Cálculos!AD$5)*Configuración!F29,"") ->  | AE26: =IFERROR(AVERAGEIFS(tblPuntuacionesAsignatura[Puntuación],tblPuntuacionesAsignatura[Asignatura],Cálculos!$C26,tblPuntuacionesAsignatura[Tipo],Cálculos!AE$5)*Configuración!G29,"") ->  | AF26: =IFERROR(AVERAGEIFS(tblPuntuacionesAsignatura[Puntuación],tblPuntuacionesAsignatura[Asignatura],Cálculos!$C26,tblPuntuacionesAsignatura[Tipo],Cálculos!AF$5)*Configuración!H29,"") ->  | AG26: =IFERROR(AVERAGEIFS(tblPuntuacionesAsignatura[Puntuación],tblPuntuacionesAsignatura[Asignatura],Cálculos!$C26,tblPuntuacionesAsignatura[Tipo],Cálculos!AG$5)*Configuración!I29,"") ->  | AH26: =IFERROR(AVERAGEIFS(tblPuntuacionesAsignatura[Puntuación],tblPuntuacionesAsignatura[Asignatura],Cálculos!$C26,tblPuntuacionesAsignatura[Tipo],Cálculos!AH$5)*Configuración!J29,"") ->  | AI26: =IFERROR(AVERAGEIFS(tblPuntuacionesAsignatura[Puntuación],tblPuntuacionesAsignatura[Asignatura],Cálculos!$C26,tblPuntuacionesAsignatura[Tipo],Cálculos!AI$5)*Configuración!K29,"") ->  | AJ26: 0 | AK26: =SUMIFS(Configuración!E29:K29,Cálculos!AC26:AI26,">0") -> 0
C27: =IF(Configuración!C30="","",Configuración!C30) ->  | AC27: =IFERROR(AVERAGEIFS(tblPuntuacionesAsignatura[Puntuación],tblPuntuacionesAsignatura[Asignatura],Cálculos!$C27,tblPuntuacionesAsignatura[Tipo],Cálculos!AC$5)*Configuración!E30,"") ->  | AD27: =IFERROR(AVERAGEIFS(tblPuntuacionesAsignatura[Puntuación],tblPuntuacionesAsignatura[Asignatura],Cálculos!$C27,tblPuntuacionesAsignatura[Tipo],Cálculos!AD$5)*Configuración!F30,"") ->  | AE27: =IFERROR(AVERAGEIFS(tblPuntuacionesAsignatura[Puntuación],tblPuntuacionesAsignatura[Asignatura],Cálculos!$C27,tblPuntuacionesAsignatura[Tipo],Cálculos!AE$5)*Configuración!G30,"") ->  | AF27: =IFERROR(AVERAGEIFS(tblPuntuacionesAsignatura[Puntuación],tblPuntuacionesAsignatura[Asignatura],Cálculos!$C27,tblPuntuacionesAsignatura[Tipo],Cálculos!AF$5)*Configuración!H30,"") ->  | AG27: =IFERROR(AVERAGEIFS(tblPuntuacionesAsignatura[Puntuación],tblPuntuacionesAsignatura[Asignatura],Cálculos!$C27,tblPuntuacionesAsignatura[Tipo],Cálculos!AG$5)*Configuración!I30,"") ->  | AH27: =IFERROR(AVERAGEIFS(tblPuntuacionesAsignatura[Puntuación],tblPuntuacionesAsignatura[Asignatura],Cálculos!$C27,tblPuntuacionesAsignatura[Tipo],Cálculos!AH$5)*Configuración!J30,"") ->  | AI27: =IFERROR(AVERAGEIFS(tblPuntuacionesAsignatura[Puntuación],tblPuntuacionesAsignatura[Asignatura],Cálculos!$C27,tblPuntuacionesAsignatura[Tipo],Cálculos!AI$5)*Configuración!K30,"") ->  | AJ27: 0 | AK27: =SUMIFS(Configuración!E30:K30,Cálculos!AC27:AI27,">0") -> 0
C28: =IF(Configuración!C31="","",Configuración!C31) ->  | AC28: =IFERROR(AVERAGEIFS(tblPuntuacionesAsignatura[Puntuación],tblPuntuacionesAsignatura[Asignatura],Cálculos!$C28,tblPuntuacionesAsignatura[Tipo],Cálculos!AC$5)*Configuración!E31,"") ->  | AD28: =IFERROR(AVERAGEIFS(tblPuntuacionesAsignatura[Puntuación],tblPuntuacionesAsignatura[Asignatura],Cálculos!$C28,tblPuntuacionesAsignatura[Tipo],Cálculos!AD$5)*Configuración!F31,"") ->  | AE28: =IFERROR(AVERAGEIFS(tblPuntuacionesAsignatura[Puntuación],tblPuntuacionesAsignatura[Asignatura],Cálculos!$C28,tblPuntuacionesAsignatura[Tipo],Cálculos!AE$5)*Configuración!G31,"") ->  | AF28: =IFERROR(AVERAGEIFS(tblPuntuacionesAsignatura[Puntuación],tblPuntuacionesAsignatura[Asignatura],Cálculos!$C28,tblPuntuacionesAsignatura[Tipo],Cálculos!AF$5)*Configuración!H31,"") ->  | AG28: =IFERROR(AVERAGEIFS(tblPuntuacionesAsignatura[Puntuación],tblPuntuacionesAsignatura[Asignatura],Cálculos!$C28,tblPuntuacionesAsignatura[Tipo],Cálculos!AG$5)*Configuración!I31,"") ->  | AH28: =IFERROR(AVERAGEIFS(tblPuntuacionesAsignatura[Puntuación],tblPuntuacionesAsignatura[Asignatura],Cálculos!$C28,tblPuntuacionesAsignatura[Tipo],Cálculos!AH$5)*Configuración!J31,"") ->  | AI28: =IFERROR(AVERAGEIFS(tblPuntuacionesAsignatura[Puntuación],tblPuntuacionesAsignatura[Asignatura],Cálculos!$C28,tblPuntuacionesAsignatura[Tipo],Cálculos!AI$5)*Configuración!K31,"") ->  | AJ28: 0 | AK28: =SUMIFS(Configuración!E31:K31,Cálculos!AC28:AI28,">0") -> 0
C29: =IF(Configuración!C32="","",Configuración!C32) ->  | AC29: =IFERROR(AVERAGEIFS(tblPuntuacionesAsignatura[Puntuación],tblPuntuacionesAsignatura[Asignatura],Cálculos!$C29,tblPuntuacionesAsignatura[Tipo],Cálculos!AC$5)*Configuración!E32,"") ->  | AD29: =IFERROR(AVERAGEIFS(tblPuntuacionesAsignatura[Puntuación],tblPuntuacionesAsignatura[Asignatura],Cálculos!$C29,tblPuntuacionesAsignatura[Tipo],Cálculos!AD$5)*Configuración!F32,"") ->  | AE29: =IFERROR(AVERAGEIFS(tblPuntuacionesAsignatura[Puntuación],tblPuntuacionesAsignatura[Asignatura],Cálculos!$C29,tblPuntuacionesAsignatura[Tipo],Cálculos!AE$5)*Configuración!G32,"") ->  | AF29: =IFERROR(AVERAGEIFS(tblPuntuacionesAsignatura[Puntuación],tblPuntuacionesAsignatura[Asignatura],Cálculos!$C29,tblPuntuacionesAsignatura[Tipo],Cálculos!AF$5)*Configuración!H32,"") ->  | AG29: =IFERROR(AVERAGEIFS(tblPuntuacionesAsignatura[Puntuación],tblPuntuacionesAsignatura[Asignatura],Cálculos!$C29,tblPuntuacionesAsignatura[Tipo],Cálculos!AG$5)*Configuración!I32,"") ->  | AH29: =IFERROR(AVERAGEIFS(tblPuntuacionesAsignatura[Puntuación],tblPuntuacionesAsignatura[Asignatura],Cálculos!$C29,tblPuntuacionesAsignatura[Tipo],Cálculos!AH$5)*Configuración!J32,"") ->  | AI29: =IFERROR(AVERAGEIFS(tblPuntuacionesAsignatura[Puntuación],tblPuntuacionesAsignatura[Asignatura],Cálculos!$C29,tblPuntuacionesAsignatura[Tipo],Cálculos!AI$5)*Configuración!K32,"") ->  | AJ29: 0 | AK29: =SUMIFS(Configuración!E32:K32,Cálculos!AC29:AI29,">0") -> 0
C30: =IF(Configuración!C33="","",Configuración!C33) ->  | AC30: =IFERROR(AVERAGEIFS(tblPuntuacionesAsignatura[Puntuación],tblPuntuacionesAsignatura[Asignatura],Cálculos!$C30,tblPuntuacionesAsignatura[Tipo],Cálculos!AC$5)*Configuración!E33,"") ->  | AD30: =IFERROR(AVERAGEIFS(tblPuntuacionesAsignatura[Puntuación],tblPuntuacionesAsignatura[Asignatura],Cálculos!$C30,tblPuntuacionesAsignatura[Tipo],Cálculos!AD$5)*Configuración!F33,"") ->  | AE30: =IFERROR(AVERAGEIFS(tblPuntuacionesAsignatura[Puntuación],tblPuntuacionesAsignatura[Asignatura],Cálculos!$C30,tblPuntuacionesAsignatura[Tipo],Cálculos!AE$5)*Configuración!G33,"") ->  | AF30: =IFERROR(AVERAGEIFS(tblPuntuacionesAsignatura[Puntuación],tblPuntuacionesAsignatura[Asignatura],Cálculos!$C30,tblPuntuacionesAsignatura[Tipo],Cálculos!AF$5)*Configuración!H33,"") ->  | AG30: =IFERROR(AVERAGEIFS(tblPuntuacionesAsignatura[Puntuación],tblPuntuacionesAsignatura[Asignatura],Cálculos!$C30,tblPuntuacionesAsignatura[Tipo],Cálculos!AG$5)*Configuración!I33,"") ->  | AH30: =IFERROR(AVERAGEIFS(tblPuntuacionesAsignatura[Puntuación],tblPuntuacionesAsignatura[Asignatura],Cálculos!$C30,tblPuntuacionesAsignatura[Tipo],Cálculos!AH$5)*Configuración!J33,"") ->  | AI30: =IFERROR(AVERAGEIFS(tblPuntuacionesAsignatura[Puntuación],tblPuntuacionesAsignatura[Asignatura],Cálculos!$C30,tblPuntuacionesAsignatura[Tipo],Cálculos!AI$5)*Configuración!K33,"") ->  | AJ30: 0 | AK30: =SUMIFS(Configuración!E33:K33,Cálculos!AC30:AI30,">0") -> 0
B33: 1 | C33: ='Seguimiento de las puntuaciones'!C4&COUNTIF('Seguimiento de las puntuaciones'!$C$4:C4,'Seguimiento de las puntuaciones'!C4) -> Francés moderno1
B34: 2 | C34: ='Seguimiento de las puntuaciones'!C5&COUNTIF('Seguimiento de las puntuaciones'!$C$4:C5,'Seguimiento de las puntuaciones'!C5) -> Programación avanzada en Java1
B35: 3 | C35: ='Seguimiento de las puntuaciones'!C6&COUNTIF('Seguimiento de las puntuaciones'!$C$4:C6,'Seguimiento de las puntuaciones'!C6) -> Español1
B36: 4 | C36: ='Seguimiento de las puntuaciones'!C7&COUNTIF('Seguimiento de las puntuaciones'!$C$4:C7,'Seguimiento de las puntuaciones'!C7) -> Física teórica1
B37: 5 | C37: ='Seguimiento de las puntuaciones'!C8&COUNTIF('Seguimiento de las puntuaciones'!$C$4:C8,'Seguimiento de las puntuaciones'!C8) -> Francés moderno2
B38: 6 | C38: ='Seguimiento de las puntuaciones'!C9&COUNTIF('Seguimiento de las puntuaciones'!$C$4:C9,'Seguimiento de las puntuaciones'!C9) -> Francés moderno3
B39: 7 | C39: ='Seguimiento de las puntuaciones'!C10&COUNTIF('Seguimiento de las puntuaciones'!$C$4:C10,'Seguimiento de las puntuaciones'!C10) -> Redacción1
B40: 8 | C40: ='Seguimiento de las puntuaciones'!C11&COUNTIF('Seguimiento de las puntuaciones'!$C$4:C11,'Seguimiento de las puntuaciones'!C11) -> Matemáticas 11
B41: 9 | C41: ='Seguimiento de las puntuaciones'!C12&COUNTIF('Seguimiento de las puntuaciones'!$C$4:C12,'Seguimiento de las puntuaciones'!C12) -> Matemáticas 21
B42: 10 | C42: ='Seguimiento de las puntuaciones'!C13&COUNTIF('Seguimiento de las puntuaciones'!$C$4:C14,'Seguimiento de las puntuaciones'!C13) -> Matemáticas 12
B43: 11 | C43: ='Seguimiento de las puntuaciones'!C14&COUNTIF('Seguimiento de las puntuaciones'!$C$4:C14,'Seguimiento de las puntuaciones'!C14) -> Matemáticas 22
B44: 12 | C44: ='Seguimiento de las puntuaciones'!C15&COUNTIF('Seguimiento de las puntuaciones'!$C$4:C15,'Seguimiento de las puntuaciones'!C15) -> 0
B45: 13 | C45: ='Seguimiento de las puntuaciones'!C16&COUNTIF('Seguimiento de las puntuaciones'!$C$4:C16,'Seguimiento de las puntuaciones'!C16) -> 0
B46: 14 | C46: ='Seguimiento de las puntuaciones'!C17&COUNTIF('Seguimiento de las puntuaciones'!$C$4:C17,'Seguimiento de las puntuaciones'!C17) -> 0
B47: 15 | C47: ='Seguimiento de las puntuaciones'!C18&COUNTIF('Seguimiento de las puntuaciones'!$C$4:C18,'Seguimiento de las puntuaciones'!C18) -> 0
B48: 16 | C48: ='Seguimiento de las puntuaciones'!C19&COUNTIF('Seguimiento de las puntuaciones'!$C$4:C19,'Seguimiento de las puntuaciones'!C19) -> 0
B49: 17 | C49: ='Seguimiento de las puntuaciones'!C20&COUNTIF('Seguimiento de las puntuaciones'!$C$4:C20,'Seguimiento de las puntuaciones'!C20) -> 0
B50: 18 | C50: ='Seguimiento de las puntuaciones'!C21&COUNTIF('Seguimiento de las puntuaciones'!$C$4:C21,'Seguimiento de las puntuaciones'!C21) -> 0
B51: 19 | C51: ='Seguimiento de las puntuaciones'!C22&COUNTIF('Seguimiento de las puntuaciones'!$C$4:C22,'Seguimiento de las puntuaciones'!C22) -> 0
B52: 20 | C52: ='Seguimiento de las puntuaciones'!C23&COUNTIF('Seguimiento de las puntuaciones'!$C$4:C23,'Seguimiento de las puntuaciones'!C23) -> 0
B53: 21 | C53: ='Seguimiento de las puntuaciones'!C24&COUNTIF('Seguimiento de las puntuaciones'!$C$4:C24,'Seguimiento de las puntuaciones'!C24) -> 0
B54: 22 | C54: ='Seguimiento de las puntuaciones'!C25&COUNTIF('Seguimiento de las puntuaciones'!$C$4:C25,'Seguimiento de las puntuaciones'!C25) -> 0
B55: 23 | C55: ='Seguimiento de las puntuaciones'!C26&COUNTIF('Seguimiento de las puntuaciones'!$C$4:C26,'Seguimiento de las puntuaciones'!C26) -> 0
B56: 24 | C56: ='Seguimiento de las puntuaciones'!C27&COUNTIF('Seguimiento de las puntuaciones'!$C$4:C27,'Seguimiento de las puntuaciones'!C27) -> 0
B57: 25 | C57: ='Seguimiento de las puntuaciones'!C28&COUNTIF('Seguimiento de las puntuaciones'!$C$4:C28,'Seguimiento de las puntuaciones'!C28) -> 0
B58: 26 | C58: ='Seguimiento de las puntuaciones'!C29&COUNTIF('Seguimiento de las puntuaciones'!$C$4:C29,'Seguimiento de las puntuaciones'!C29) -> 0
B59: 27 | C59: ='Seguimiento de las puntuaciones'!C30&COUNTIF('Seguimiento de las puntuaciones'!$C$4:C30,'Seguimiento de las puntuaciones'!C30) -> 0
B60: 28 | C60: ='Seguimiento de las puntuaciones'!C31&COUNTIF('Seguimiento de las puntuaciones'!$C$4:C31,'Seguimiento de las puntuaciones'!C31) -> 0
B61: 29 | C61: ='Seguimiento de las puntuaciones'!C32&COUNTIF('Seguimiento de las puntuaciones'!$C$4:C32,'Seguimiento de las puntuaciones'!C32) -> 0
B62: 30 | C62: ='Seguimiento de las puntuaciones'!C33&COUNTIF('Seguimiento de las puntuaciones'!$C$4:C33,'Seguimiento de las puntuaciones'!C33) -> 0
B63: 31 | C63: ='Seguimiento de las puntuaciones'!C34&COUNTIF('Seguimiento de las puntuaciones'!$C$4:C34,'Seguimiento de las puntuaciones'!C34) -> 0
B64: 32 | C64: ='Seguimiento de las puntuaciones'!C35&COUNTIF('Seguimiento de las puntuaciones'!$C$4:C35,'Seguimiento de las puntuaciones'!C35) -> 0
B65: 33 | C65: ='Seguimiento de las puntuaciones'!C36&COUNTIF('Seguimiento de las puntuaciones'!$C$4:C36,'Seguimiento de las puntuaciones'!C36) -> 0
B66: 34 | C66: ='Seguimiento de las puntuaciones'!C37&COUNTIF('Seguimiento de las puntuaciones'!$C$4:C37,'Seguimiento de las puntuaciones'!C37) -> 0
B67: 35 | C67: ='Seguimiento de las puntuaciones'!C38&COUNTIF('Seguimiento de las puntuaciones'!$C$4:C38,'Seguimiento de las puntuaciones'!C38) -> 0
B68: 36 | C68: ='Seguimiento de las puntuaciones'!C39&COUNTIF('Seguimiento de las puntuaciones'!$C$4:C39,'Seguimiento de las puntuaciones'!C39) -> 0
B69: 37 | C69: ='Seguimiento de las puntuaciones'!C40&COUNTIF('Seguimiento de las puntuaciones'!$C$4:C40,'Seguimiento de las puntuaciones'!C40) -> 0
B70: 38 | C70: ='Seguimiento de las puntuaciones'!C41&COUNTIF('Seguimiento de las puntuaciones'!$C$4:C41,'Seguimiento de las puntuaciones'!C41) -> 0
B71: 39 | C71: ='Seguimiento de las puntuaciones'!C42&COUNTIF('Seguimiento de las puntuaciones'!$C$4:C42,'Seguimiento de las puntuaciones'!C42) -> 0
B72: 40 | C72: ='Seguimiento de las puntuaciones'!C43&COUNTIF('Seguimiento de las puntuaciones'!$C$4:C43,'Seguimiento de las puntuaciones'!C43) -> 0
B73: 41 | C73: ='Seguimiento de las puntuaciones'!C44&COUNTIF('Seguimiento de las puntuaciones'!$C$4:C44,'Seguimiento de las puntuaciones'!C44) -> 0
B74: 42 | C74: ='Seguimiento de las puntuaciones'!C45&COUNTIF('Seguimiento de las puntuaciones'!$C$4:C45,'Seguimiento de las puntuaciones'!C45) -> 0
B75: 43 | C75: ='Seguimiento de las puntuaciones'!C46&COUNTIF('Seguimiento de las puntuaciones'!$C$4:C46,'Seguimiento de las puntuaciones'!C46) -> 0
B76: 44 | C76: ='Seguimiento de las puntuaciones'!C47&COUNTIF('Seguimiento de las puntuaciones'!$C$4:C47,'Seguimiento de las puntuaciones'!C47) -> 0
B77: 45 | C77: ='Seguimiento de las puntuaciones'!C48&COUNTIF('Seguimiento de las puntuaciones'!$C$4:C48,'Seguimiento de las puntuaciones'!C48) -> 0
B78: 46 | C78: ='Seguimiento de las puntuaciones'!C49&COUNTIF('Seguimiento de las puntuaciones'!$C$4:C49,'Seguimiento de las puntuaciones'!C49) -> 0
B79: 47 | C79: ='Seguimiento de las puntuaciones'!C50&COUNTIF('Seguimiento de las puntuaciones'!$C$4:C50,'Seguimiento de las puntuaciones'!C50) -> 0
B80: 48 | C80: ='Seguimiento de las puntuaciones'!C51&COUNTIF('Seguimiento de las puntuaciones'!$C$4:C51,'Seguimiento de las puntuaciones'!C51) -> 0
B81: 49 | C81: ='Seguimiento de las puntuaciones'!C52&COUNTIF('Seguimiento de las puntuaciones'!$C$4:C52,'Seguimiento de las puntuaciones'!C52) -> 0
B82: 50 | C82: ='Seguimiento de las puntuaciones'!C53&COUNTIF('Seguimiento de las puntuaciones'!$C$4:C53,'Seguimiento de las puntuaciones'!C53) -> 0
B83: 51 | C83: ='Seguimiento de las puntuaciones'!C54&COUNTIF('Seguimiento de las puntuaciones'!$C$4:C54,'Seguimiento de las puntuaciones'!C54) -> 0
B84: 52 | C84: ='Seguimiento de las puntuaciones'!C55&COUNTIF('Seguimiento de las puntuaciones'!$C$4:C55,'Seguimiento de las puntuaciones'!C55) -> 0
B85: 53 | C85: ='Seguimiento de las puntuaciones'!C56&COUNTIF('Seguimiento de las puntuaciones'!$C$4:C56,'Seguimiento de las puntuaciones'!C56) -> 0
B86: 54 | C86: ='Seguimiento de las puntuaciones'!C57&COUNTIF('Seguimiento de las puntuaciones'!$C$4:C57,'Seguimiento de las puntuaciones'!C57) -> 0
B87: 55 | C87: ='Seguimiento de las puntuaciones'!C58&COUNTIF('Seguimiento de las puntuaciones'!$C$4:C58,'Seguimiento de las puntuaciones'!C58) -> 0
B88: 56 | C88: ='Seguimiento de las puntuaciones'!C59&COUNTIF('Seguimiento de las puntuaciones'!$C$4:C59,'Seguimiento de las puntuaciones'!C59) -> 0
B89: 57 | C89: ='Seguimiento de las puntuaciones'!C60&COUNTIF('Seguimiento de las puntuaciones'!$C$4:C60,'Seguimiento de las puntuaciones'!C60) -> 0
B90: 58 | C90: ='Seguimiento de las puntuaciones'!C61&COUNTIF('Seguimiento de las puntuaciones'!$C$4:C61,'Seguimiento de las puntuaciones'!C61) -> 0
B91: 59 | C91: ='Seguimiento de las puntuaciones'!C62&COUNTIF('Seguimiento de las puntuaciones'!$C$4:C62,'Seguimiento de las puntuaciones'!C62) -> 0
B92: 60 | C92: ='Seguimiento de las puntuaciones'!C63&COUNTIF('Seguimiento de las puntuaciones'!$C$4:C63,'Seguimiento de las puntuaciones'!C63) -> 0
B93: 61 | C93: ='Seguimiento de las puntuaciones'!C64&COUNTIF('Seguimiento de las puntuaciones'!$C$4:C64,'Seguimiento de las puntuaciones'!C64) -> 0
B94: 62 | C94: ='Seguimiento de las puntuaciones'!C65&COUNTIF('Seguimiento de las puntuaciones'!$C$4:C65,'Seguimiento de las puntuaciones'!C65) -> 0
B95: 63 | C95: ='Seguimiento de las puntuaciones'!C66&COUNTIF('Seguimiento de las puntuaciones'!$C$4:C66,'Seguimiento de las puntuaciones'!C66) -> 0
B96: 64 | C96: ='Seguimiento de las puntuaciones'!C67&COUNTIF('Seguimiento de las puntuaciones'!$C$4:C67,'Seguimiento de las puntuaciones'!C67) -> 0
B97: 65 | C97: ='Seguimiento de las puntuaciones'!C68&COUNTIF('Seguimiento de las puntuaciones'!$C$4:C68,'Seguimiento de las puntuaciones'!C68) -> 0
B98: 66 | C98: ='Seguimiento de las puntuaciones'!C69&COUNTIF('Seguimiento de las puntuaciones'!$C$4:C69,'Seguimiento de las puntuaciones'!C69) -> 0
B99: 67 | C99: ='Seguimiento de las puntuaciones'!C70&COUNTIF('Seguimiento de las puntuaciones'!$C$4:C70,'Seguimiento de las puntuaciones'!C70) -> 0
B100: 68 | C100: ='Seguimiento de las puntuaciones'!C71&COUNTIF('Seguimiento de las puntuaciones'!$C$4:C71,'Seguimiento de las puntuaciones'!C71) -> 0
B101: 69 | C101: ='Seguimiento de las puntuaciones'!C72&COUNTIF('Seguimiento de las puntuaciones'!$C$4:C72,'Seguimiento de las puntuaciones'!C72) -> 0
B102: 70 | C102: ='Seguimiento de las puntuaciones'!C73&COUNTIF('Seguimiento de las puntuaciones'!$C$4:C73,'Seguimiento de las puntuaciones'!C73) -> 0
B103: 71 | C103: ='Seguimiento de las puntuaciones'!C74&COUNTIF('Seguimiento de las puntuaciones'!$C$4:C74,'Seguimiento de las puntuaciones'!C74) -> 0
B104: 72 | C104: ='Seguimiento de las puntuaciones'!C75&COUNTIF('Seguimiento de las puntuaciones'!$C$4:C75,'Seguimiento de las puntuaciones'!C75) -> 0
B105: 73 | C105: ='Seguimiento de las puntuaciones'!C76&COUNTIF('Seguimiento de las puntuaciones'!$C$4:C76,'Seguimiento de las puntuaciones'!C76) -> 0
B106: 74 | C106: ='Seguimiento de las puntuaciones'!C77&COUNTIF('Seguimiento de las puntuaciones'!$C$4:C77,'Seguimiento de las puntuaciones'!C77) -> 0
B107: 75 | C107: ='Seguimiento de las puntuaciones'!C78&COUNTIF('Seguimiento de las puntuaciones'!$C$4:C78,'Seguimiento de las puntuaciones'!C78) -> 0
B108: 76 | C108: ='Seguimiento de las puntuaciones'!C79&COUNTIF('Seguimiento de las puntuaciones'!$C$4:C79,'Seguimiento de las puntuaciones'!C79) -> 0
B109: 77 | C109: ='Seguimiento de las puntuaciones'!C80&COUNTIF('Seguimiento de las puntuaciones'!$C$4:C80,'Seguimiento de las puntuaciones'!C80) -> 0
B110: 78 | C110: ='Seguimiento de las puntuaciones'!C81&COUNTIF('Seguimiento de las puntuaciones'!$C$4:C81,'Seguimiento de las puntuaciones'!C81) -> 0
B111: 79 | C111: ='Seguimiento de las puntuaciones'!C82&COUNTIF('Seguimiento de las puntuaciones'!$C$4:C82,'Seguimiento de las puntuaciones'!C82) -> 0
B112: 80 | C112: ='Seguimiento de las puntuaciones'!C83&COUNTIF('Seguimiento de las puntuaciones'!$C$4:C83,'Seguimiento de las puntuaciones'!C83) -> 0
B113: 81 | C113: ='Seguimiento de las puntuaciones'!C84&COUNTIF('Seguimiento de las puntuaciones'!$C$4:C84,'Seguimiento de las puntuaciones'!C84) -> 0
B114: 82 | C114: ='Seguimiento de las puntuaciones'!C85&COUNTIF('Seguimiento de las puntuaciones'!$C$4:C85,'Seguimiento de las puntuaciones'!C85) -> 0
B115: 83 | C115: ='Seguimiento de las puntuaciones'!C86&COUNTIF('Seguimiento de las puntuaciones'!$C$4:C86,'Seguimiento de las puntuaciones'!C86) -> 0
B116: 84 | C116: ='Seguimiento de las puntuaciones'!C87&COUNTIF('Seguimiento de las puntuaciones'!$C$4:C87,'Seguimiento de las puntuaciones'!C87) -> 0
B117: 85 | C117: ='Seguimiento de las puntuaciones'!C88&COUNTIF('Seguimiento de las puntuaciones'!$C$4:C88,'Seguimiento de las puntuaciones'!C88) -> 0
B118: 86 | C118: ='Seguimiento de las puntuaciones'!C89&COUNTIF('Seguimiento de las puntuaciones'!$C$4:C89,'Seguimiento de las puntuaciones'!C89) -> 0
B119: 87 | C119: ='Seguimiento de las puntuaciones'!C90&COUNTIF('Seguimiento de las puntuaciones'!$C$4:C90,'Seguimiento de las puntuaciones'!C90) -> 0
B120: 88 | C120: ='Seguimiento de las puntuaciones'!C91&COUNTIF('Seguimiento de las puntuaciones'!$C$4:C91,'Seguimiento de las puntuaciones'!C91) -> 0
B121: 89 | C121: ='Seguimiento de las puntuaciones'!C92&COUNTIF('Seguimiento de las puntuaciones'!$C$4:C92,'Seguimiento de las puntuaciones'!C92) -> 0
B122: 90 | C122: ='Seguimiento de las puntuaciones'!C93&COUNTIF('Seguimiento de las puntuaciones'!$C$4:C93,'Seguimiento de las puntuaciones'!C93) -> 0
B123: 91 | C123: ='Seguimiento de las puntuaciones'!C94&COUNTIF('Seguimiento de las puntuaciones'!$C$4:C94,'Seguimiento de las puntuaciones'!C94) -> 0
B124: 92 | C124: ='Seguimiento de las puntuaciones'!C95&COUNTIF('Seguimiento de las puntuaciones'!$C$4:C95,'Seguimiento de las puntuaciones'!C95) -> 0
B125: 93 | C125: ='Seguimiento de las puntuaciones'!C96&COUNTIF('Seguimiento de las puntuaciones'!$C$4:C96,'Seguimiento de las puntuaciones'!C96) -> 0
B126: 94 | C126: ='Seguimiento de las puntuaciones'!C97&COUNTIF('Seguimiento de las puntuaciones'!$C$4:C97,'Seguimiento de las puntuaciones'!C97) -> 0
B127: 95 | C127: ='Seguimiento de las puntuaciones'!C98&COUNTIF('Seguimiento de las puntuaciones'!$C$4:C98,'Seguimiento de las puntuaciones'!C98) -> 0
B128: 96 | C128: ='Seguimiento de las puntuaciones'!C99&COUNTIF('Seguimiento de las puntuaciones'!$C$4:C99,'Seguimiento de las puntuaciones'!C99) -> 0
B129: 97 | C129: ='Seguimiento de las puntuaciones'!C100&COUNTIF('Seguimiento de las puntuaciones'!$C$4:C100,'Seguimiento de las puntuaciones'!C100) -> 0
B130: 98 | C130: ='Seguimiento de las puntuaciones'!C101&COUNTIF('Seguimiento de las puntuaciones'!$C$4:C101,'Seguimiento de las puntuaciones'!C101) -> 0
B131: 99 | C131: ='Seguimiento de las puntuaciones'!C102&COUNTIF('Seguimiento de las puntuaciones'!$C$4:C102,'Seguimiento de las puntuaciones'!C102) -> 0
B132: 100 | C132: ='Seguimiento de las puntuaciones'!C103&COUNTIF('Seguimiento de las puntuaciones'!$C$4:C103,'Seguimiento de las puntuaciones'!C103) -> 0
B133: 101 | C133: ='Seguimiento de las puntuaciones'!C104&COUNTIF('Seguimiento de las puntuaciones'!$C$4:C104,'Seguimiento de las puntuaciones'!C104) -> 0
B134: 102 | C134: ='Seguimiento de las puntuaciones'!C105&COUNTIF('Seguimiento de las puntuaciones'!$C$4:C105,'Seguimiento de las puntuaciones'!C105) -> 0
B135: 103 | C135: ='Seguimiento de las puntuaciones'!C106&COUNTIF('Seguimiento de las puntuaciones'!$C$4:C106,'Seguimiento de las puntuaciones'!C106) -> 0
B136: 104 | C136: ='Seguimiento de las puntuaciones'!C107&COUNTIF('Seguimiento de las puntuaciones'!$C$4:C107,'Seguimiento de las puntuaciones'!C107) -> 0
B137: 105 | C137: ='Seguimiento de las puntuaciones'!C108&COUNTIF('Seguimiento de las puntuaciones'!$C$4:C108,'Seguimiento de las puntuaciones'!C108) -> 0
B138: 106 | C138: ='Seguimiento de las puntuaciones'!C109&COUNTIF('Seguimiento de las puntuaciones'!$C$4:C109,'Seguimiento de las puntuaciones'!C109) -> 0
B139: 107 | C139: ='Seguimiento de las puntuaciones'!C110&COUNTIF('Seguimiento de las puntuaciones'!$C$4:C110,'Seguimiento de las puntuaciones'!C110) -> 0
B140: 108 | C140: ='Seguimiento de las puntuaciones'!C111&COUNTIF('Seguimiento de las puntuaciones'!$C$4:C111,'Seguimiento de las puntuaciones'!C111) -> 0
B141: 109 | C141: ='Seguimiento de las puntuaciones'!C112&COUNTIF('Seguimiento de las puntuaciones'!$C$4:C112,'Seguimiento de las puntuaciones'!C112) -> 0
B142: 110 | C142: ='Seguimiento de las puntuaciones'!C113&COUNTIF('Seguimiento de las puntuaciones'!$C$4:C113,'Seguimiento de las puntuaciones'!C113) -> 0
B143: 111 | C143: ='Seguimiento de las puntuaciones'!C114&COUNTIF('Seguimiento de las puntuaciones'!$C$4:C114,'Seguimiento de las puntuaciones'!C114) -> 0
B144: 112 | C144: ='Seguimiento de las puntuaciones'!C115&COUNTIF('Seguimiento de las puntuaciones'!$C$4:C115,'Seguimiento de las puntuaciones'!C115) -> 0
B145: 113 | C145: ='Seguimiento de las puntuaciones'!C116&COUNTIF('Seguimiento de las puntuaciones'!$C$4:C116,'Seguimiento de las puntuaciones'!C116) -> 0
B146: 114 | C146: ='Seguimiento de las puntuaciones'!C117&COUNTIF('Seguimiento de las puntuaciones'!$C$4:C117,'Seguimiento de las puntuaciones'!C117) -> 0
B147: 115 | C147: ='Seguimiento de las puntuaciones'!C118&COUNTIF('Seguimiento de las puntuaciones'!$C$4:C118,'Seguimiento de las puntuaciones'!C118) -> 0
B148: 116 | C148: ='Seguimiento de las puntuaciones'!C119&COUNTIF('Seguimiento de las puntuaciones'!$C$4:C119,'Seguimiento de las puntuaciones'!C119) -> 0
B149: 117 | C149: ='Seguimiento de las puntuaciones'!C120&COUNTIF('Seguimiento de las puntuaciones'!$C$4:C120,'Seguimiento de las puntuaciones'!C120) -> 0
B150: 118 | C150: ='Seguimiento de las puntuaciones'!C121&COUNTIF('Seguimiento de las puntuaciones'!$C$4:C121,'Seguimiento de las puntuaciones'!C121) -> 0
B151: 119 | C151: ='Seguimiento de las puntuaciones'!C122&COUNTIF('Seguimiento de las puntuaciones'!$C$4:C122,'Seguimiento de las puntuaciones'!C122) -> 0
B152: 120 | C152: ='Seguimiento de las puntuaciones'!C123&COUNTIF('Seguimiento de las puntuaciones'!$C$4:C123,'Seguimiento de las puntuaciones'!C123) -> 0
B153: 121 | C153: ='Seguimiento de las puntuaciones'!C124&COUNTIF('Seguimiento de las puntuaciones'!$C$4:C124,'Seguimiento de las puntuaciones'!C124) -> 0
B154: 122 | C154: ='Seguimiento de las puntuaciones'!C125&COUNTIF('Seguimiento de las puntuaciones'!$C$4:C125,'Seguimiento de las puntuaciones'!C125) -> 0
B155: 123 | C155: ='Seguimiento de las puntuaciones'!C126&COUNTIF('Seguimiento de las puntuaciones'!$C$4:C126,'Seguimiento de las puntuaciones'!C126) -> 0
B156: 124 | C156: ='Seguimiento de las puntuaciones'!C127&COUNTIF('Seguimiento de las puntuaciones'!$C$4:C127,'Seguimiento de las puntuaciones'!C127) -> 0
B157: 125 | C157: ='Seguimiento de las puntuaciones'!C128&COUNTIF('Seguimiento de las puntuaciones'!$C$4:C128,'Seguimiento de las puntuaciones'!C128) -> 0
B158: 126 | C158: ='Seguimiento de las puntuaciones'!C129&COUNTIF('Seguimiento de las puntuaciones'!$C$4:C129,'Seguimiento de las puntuaciones'!C129) -> 0
B159: 127 | C159: ='Seguimiento de las puntuaciones'!C130&COUNTIF('Seguimiento de las puntuaciones'!$C$4:C130,'Seguimiento de las puntuaciones'!C130) -> 0
B160: 128 | C160: ='Seguimiento de las puntuaciones'!C131&COUNTIF('Seguimiento de las puntuaciones'!$C$4:C131,'Seguimiento de las puntuaciones'!C131) -> 0
B161: 129 | C161: ='Seguimiento de las puntuaciones'!C132&COUNTIF('Seguimiento de las puntuaciones'!$C$4:C132,'Seguimiento de las puntuaciones'!C132) -> 0
B162: 130 | C162: ='Seguimiento de las puntuaciones'!C133&COUNTIF('Seguimiento de las puntuaciones'!$C$4:C133,'Seguimiento de las puntuaciones'!C133) -> 0
B163: 131 | C163: ='Seguimiento de las puntuaciones'!C134&COUNTIF('Seguimiento de las puntuaciones'!$C$4:C134,'Seguimiento de las puntuaciones'!C134) -> 0
B164: 132 | C164: ='Seguimiento de las puntuaciones'!C135&COUNTIF('Seguimiento de las puntuaciones'!$C$4:C135,'Seguimiento de las puntuaciones'!C135) -> 0
B165: 133 | C165: ='Seguimiento de las puntuaciones'!C136&COUNTIF('Seguimiento de las puntuaciones'!$C$4:C136,'Seguimiento de las puntuaciones'!C136) -> 0
B166: 134 | C166: ='Seguimiento de las puntuaciones'!C137&COUNTIF('Seguimiento de las puntuaciones'!$C$4:C137,'Seguimiento de las puntuaciones'!C137) -> 0
B167: 135 | C167: ='Seguimiento de las puntuaciones'!C138&COUNTIF('Seguimiento de las puntuaciones'!$C$4:C138,'Seguimiento de las puntuaciones'!C138) -> 0
B168: 136 | C168: ='Seguimiento de las puntuaciones'!C139&COUNTIF('Seguimiento de las puntuaciones'!$C$4:C139,'Seguimiento de las puntuaciones'!C139) -> 0
B169: 137 | C169: ='Seguimiento de las puntuaciones'!C140&COUNTIF('Seguimiento de las puntuaciones'!$C$4:C140,'Seguimiento de las puntuaciones'!C140) -> 0
B170: 138 | C170: ='Seguimiento de las puntuaciones'!C141&COUNTIF('Seguimiento de las puntuaciones'!$C$4:C141,'Seguimiento de las puntuaciones'!C141) -> 0
B171: 139 | C171: ='Seguimiento de las puntuaciones'!C142&COUNTIF('Seguimiento de las puntuaciones'!$C$4:C142,'Seguimiento de las puntuaciones'!C142) -> 0
B172: 140 | C172: ='Seguimiento de las puntuaciones'!C143&COUNTIF('Seguimiento de las puntuaciones'!$C$4:C143,'Seguimiento de las puntuaciones'!C143) -> 0
B173: 141 | C173: ='Seguimiento de las puntuaciones'!C144&COUNTIF('Seguimiento de las puntuaciones'!$C$4:C144,'Seguimiento de las puntuaciones'!C144) -> 0
B174: 142 | C174: ='Seguimiento de las puntuaciones'!C145&COUNTIF('Seguimiento de las puntuaciones'!$C$4:C145,'Seguimiento de las puntuaciones'!C145) -> 0
B175: 143 | C175: ='Seguimiento de las puntuaciones'!C146&COUNTIF('Seguimiento de las puntuaciones'!$C$4:C146,'Seguimiento de las puntuaciones'!C146) -> 0
B176: 144 | C176: ='Seguimiento de las puntuaciones'!C147&COUNTIF('Seguimiento de las puntuaciones'!$C$4:C147,'Seguimiento de las puntuaciones'!C147) -> 0
B177: 145 | C177: ='Seguimiento de las puntuaciones'!C148&COUNTIF('Seguimiento de las puntuaciones'!$C$4:C148,'Seguimiento de las puntuaciones'!C148) -> 0
B178: 146 | C178: ='Seguimiento de las puntuaciones'!C149&COUNTIF('Seguimiento de las puntuaciones'!$C$4:C149,'Seguimiento de las puntuaciones'!C149) -> 0
B179: 147 | C179: ='Seguimiento de las puntuaciones'!C150&COUNTIF('Seguimiento de las puntuaciones'!$C$4:C150,'Seguimiento de las puntuaciones'!C150) -> 0
B180: 148 | C180: ='Seguimiento de las puntuaciones'!C151&COUNTIF('Seguimiento de las puntuaciones'!$C$4:C151,'Seguimiento de las puntuaciones'!C151) -> 0
B181: 149 | C181: ='Seguimiento de las puntuaciones'!C152&COUNTIF('Seguimiento de las puntuaciones'!$C$4:C152,'Seguimiento de las puntuaciones'!C152) -> 0
B182: 150 | C182: ='Seguimiento de las puntuaciones'!C153&COUNTIF('Seguimiento de las puntuaciones'!$C$4:C153,'Seguimiento de las puntuaciones'!C153) -> 0
B183: 151 | C183: ='Seguimiento de las puntuaciones'!C154&COUNTIF('Seguimiento de las puntuaciones'!$C$4:C154,'Seguimiento de las puntuaciones'!C154) -> 0
B184: 152 | C184: ='Seguimiento de las puntuaciones'!C155&COUNTIF('Seguimiento de las puntuaciones'!$C$4:C155,'Seguimiento de las puntuaciones'!C155) -> 0
B185: 153 | C185: ='Seguimiento de las puntuaciones'!C156&COUNTIF('Seguimiento de las puntuaciones'!$C$4:C156,'Seguimiento de las puntuaciones'!C156) -> 0
B186: 154 | C186: ='Seguimiento de las puntuaciones'!C157&COUNTIF('Seguimiento de las puntuaciones'!$C$4:C157,'Seguimiento de las puntuaciones'!C157) -> 0
B187: 155 | C187: ='Seguimiento de las puntuaciones'!C158&COUNTIF('Seguimiento de las puntuaciones'!$C$4:C158,'Seguimiento de las puntuaciones'!C158) -> 0
B188: 156 | C188: ='Seguimiento de las puntuaciones'!C159&COUNTIF('Seguimiento de las puntuaciones'!$C$4:C159,'Seguimiento de las puntuaciones'!C159) -> 0
B189: 157 | C189: ='Seguimiento de las puntuaciones'!C160&COUNTIF('Seguimiento de las puntuaciones'!$C$4:C160,'Seguimiento de las puntuaciones'!C160) -> 0
B190: 158 | C190: ='Seguimiento de las puntuaciones'!C161&COUNTIF('Seguimiento de las puntuaciones'!$C$4:C161,'Seguimiento de las puntuaciones'!C161) -> 0
B191: 159 | C191: ='Seguimiento de las puntuaciones'!C162&COUNTIF('Seguimiento de las puntuaciones'!$C$4:C162,'Seguimiento de las puntuaciones'!C162) -> 0
B192: 160 | C192: ='Seguimiento de las puntuaciones'!C163&COUNTIF('Seguimiento de las puntuaciones'!$C$4:C163,'Seguimiento de las puntuaciones'!C163) -> 0
B193: 161 | C193: ='Seguimiento de las puntuaciones'!C164&COUNTIF('Seguimiento de las puntuaciones'!$C$4:C164,'Seguimiento de las puntuaciones'!C164) -> 0
B194: 162 | C194: ='Seguimiento de las puntuaciones'!C165&COUNTIF('Seguimiento de las puntuaciones'!$C$4:C165,'Seguimiento de las puntuaciones'!C165) -> 0
B195: 163 | C195: ='Seguimiento de las puntuaciones'!C166&COUNTIF('Seguimiento de las puntuaciones'!$C$4:C166,'Seguimiento de las puntuaciones'!C166) -> 0
B196: 164 | C196: ='Seguimiento de las puntuaciones'!C167&COUNTIF('Seguimiento de las puntuaciones'!$C$4:C167,'Seguimiento de las puntuaciones'!C167) -> 0
B197: 165 | C197: ='Seguimiento de las puntuaciones'!C168&COUNTIF('Seguimiento de las puntuaciones'!$C$4:C168,'Seguimiento de las puntuaciones'!C168) -> 0
B198: 166 | C198: ='Seguimiento de las puntuaciones'!C169&COUNTIF('Seguimiento de las puntuaciones'!$C$4:C169,'Seguimiento de las puntuaciones'!C169) -> 0
B199: 167 | C199: ='Seguimiento de las puntuaciones'!C170&COUNTIF('Seguimiento de las puntuaciones'!$C$4:C170,'Seguimiento de las puntuaciones'!C170) -> 0
B200: 168 | C200: ='Seguimiento de las puntuaciones'!C171&COUNTIF('Seguimiento de las puntuaciones'!$C$4:C171,'Seguimiento de las puntuaciones'!C171) -> 0
B201: 169 | C201: ='Seguimiento de las puntuaciones'!C172&COUNTIF('Seguimiento de las puntuaciones'!$C$4:C172,'Seguimiento de las puntuaciones'!C172) -> 0
B202: 170 | C202: ='Seguimiento de las puntuaciones'!C173&COUNTIF('Seguimiento de las puntuaciones'!$C$4:C173,'Seguimiento de las puntuaciones'!C173) -> 0
B203: 171 | C203: ='Seguimiento de las puntuaciones'!C174&COUNTIF('Seguimiento de las puntuaciones'!$C$4:C174,'Seguimiento de las puntuaciones'!C174) -> 0
... 454 more rows
